Workbook

Sheet Summary
A1: Summary
A2: Accounts | B2: =DATE(YEAR(TODAY()),MONTH(TODAY())-5,1)-1 -> 2012-06-30 | C2: =DATE(YEAR(TODAY()),MONTH(TODAY())-4,1)-1 -> 2012-07-31 | D2: =DATE(YEAR(TODAY()),MONTH(TODAY())-3,1)-1 -> 2012-08-31 | E2: =DATE(YEAR(TODAY()),MONTH(TODAY())-2,1)-1 -> 2012-09-30 | F2: =DATE(YEAR(TODAY()),MONTH(TODAY())-1,1)-1 -> 2012-10-31 | G2: =DATE(YEAR(TODAY()),MONTH(TODAY()),1)-1 -> 2012-11-30 | H2: =DATE(YEAR(TODAY()),MONTH(TODAY())+1,1)-1 -> 2012-12-31
A3: Checking | B3: =Checking!$K$3+SUMIFS(Checking!$H:$H,Checking!$B:$B,"<="&B$2)-SUMIFS(Checking!$J:$J,Checking!$B:$B,"<="&B$2) -> 7152.81 | C3: =Checking!$K$3+SUMIFS(Checking!$H:$H,Checking!$B:$B,"<="&C$2)-SUMIFS(Checking!$J:$J,Checking!$B:$B,"<="&C$2) -> 7152.81 | D3: =Checking!$K$3+SUMIFS(Checking!$H:$H,Checking!$B:$B,"<="&D$2)-SUMIFS(Checking!$J:$J,Checking!$B:$B,"<="&D$2) -> 8907.73 | E3: =Checking!$K$3+SUMIFS(Checking!$H:$H,Checking!$B:$B,"<="&E$2)-SUMIFS(Checking!$J:$J,Checking!$B:$B,"<="&E$2) -> 9492.75 | F3: =Checking!$K$3+SUMIFS(Checking!$H:$H,Checking!$B:$B,"<="&F$2)-SUMIFS(Checking!$J:$J,Checking!$B:$B,"<="&F$2) -> 8593.73 | G3: =Checking!$K$3+SUMIFS(Checking!$H:$H,Checking!$B:$B,"<="&G$2)-SUMIFS(Checking!$J:$J,Checking!$B:$B,"<="&G$2) -> 8880.04 | H3: =Checking!$K$3+SUMIFS(Checking!$H:$H,Checking!$B:$B,"<="&H$2)-SUMIFS(Checking!$J:$J,Checking!$B:$B,"<="&H$2) -> 8880.04
A4: Austin's Money | B4: =SUMIFS(Checking!$H:$H,Checking!$B:$B,"<="&B$2,Checking!$F:$F,$A$4)-SUMIFS(Checking!$J:$J,Checking!$B:$B,"<="&B$2,Checking!$F:$F,$A$4) -> 0 | C4: =SUMIFS(Checking!$H:$H,Checking!$B:$B,"<="&C$2,Checking!$F:$F,$A$4)-SUMIFS(Checking!$J:$J,Checking!$B:$B,"<="&C$2,Checking!$F:$F,$A$4) -> 0 | D4: =SUMIFS(Checking!$H:$H,Checking!$B:$B,"<="&D$2,Checking!$F:$F,$A$4)-SUMIFS(Checking!$J:$J,Checking!$B:$B,"<="&D$2,Checking!$F:$F,$A$4) -> 0 | E4: =SUMIFS(Checking!$H:$H,Checking!$B:$B,"<="&E$2,Checking!$F:$F,$A$4)-SUMIFS(Checking!$J:$J,Checking!$B:$B,"<="&E$2,Checking!$F:$F,$A$4) -> 0 | F4: =SUMIFS(Checking!$H:$H,Checking!$B:$B,"<="&F$2,Checking!$F:$F,$A$4)-SUMIFS(Checking!$J:$J,Checking!$B:$B,"<="&F$2,Checking!$F:$F,$A$4) -> 0 | G4: =SUMIFS(Checking!$H:$H,Checking!$B:$B,"<="&G$2,Checking!$F:$F,$A$4)-SUMIFS(Checking!$J:$J,Checking!$B:$B,"<="&G$2,Checking!$F:$F,$A$4) -> 0 | H4: =SUMIFS(Checking!$H:$H,Checking!$B:$B,"<="&H$2,Checking!$F:$F,$A$4)-SUMIFS(Checking!$J:$J,Checking!$B:$B,"<="&H$2,Checking!$F:$F,$A$4) -> 0
A5: Rochelle's Money | B5: =SUMIFS(Checking!$H:$H,Checking!$B:$B,"<="&B$2,Checking!$F:$F,$A$5)-SUMIFS(Checking!$J:$J,Checking!$B:$B,"<="&B$2,Checking!$F:$F,$A$5) -> 0 | C5: =SUMIFS(Checking!$H:$H,Checking!$B:$B,"<="&C$2,Checking!$F:$F,$A$5)-SUMIFS(Checking!$J:$J,Checking!$B:$B,"<="&C$2,Checking!$F:$F,$A$5) -> 0 | D5: =SUMIFS(Checking!$H:$H,Checking!$B:$B,"<="&D$2,Checking!$F:$F,$A$5)-SUMIFS(Checking!$J:$J,Checking!$B:$B,"<="&D$2,Checking!$F:$F,$A$5) -> 74.5 | E5: =SUMIFS(Checking!$H:$H,Checking!$B:$B,"<="&E$2,Checking!$F:$F,$A$5)-SUMIFS(Checking!$J:$J,Checking!$B:$B,"<="&E$2,Checking!$F:$F,$A$5) -> 74.5 | F5: =SUMIFS(Checking!$H:$H,Checking!$B:$B,"<="&F$2,Checking!$F:$F,$A$5)-SUMIFS(Checking!$J:$J,Checking!$B:$B,"<="&F$2,Checking!$F:$F,$A$5) -> 74.5 | G5: =SUMIFS(Checking!$H:$H,Checking!$B:$B,"<="&G$2,Checking!$F:$F,$A$5)-SUMIFS(Checking!$J:$J,Checking!$B:$B,"<="&G$2,Checking!$F:$F,$A$5) -> 74.5 | H5: =SUMIFS(Checking!$H:$H,Checking!$B:$B,"<="&H$2,Checking!$F:$F,$A$5)-SUMIFS(Checking!$J:$J,Checking!$B:$B,"<="&H$2,Checking!$F:$F,$A$5) -> 74.5
A6: Savings | B6: =Savings!$K$3+SUMIFS(Savings!$H:$H,Savings!$B:$B,"<="&B$2)-SUMIFS(Savings!$J:$J,Savings!$B:$B,"<="&B$2) -> 17946.1 | C6: =Savings!$K$3+SUMIFS(Savings!$H:$H,Savings!$B:$B,"<="&C$2)-SUMIFS(Savings!$J:$J,Savings!$B:$B,"<="&C$2) -> 17946.1 | D6: =Savings!$K$3+SUMIFS(Savings!$H:$H,Savings!$B:$B,"<="&D$2)-SUMIFS(Savings!$J:$J,Savings!$B:$B,"<="&D$2) -> 15547.1 | E6: =Savings!$K$3+SUMIFS(Savings!$H:$H,Savings!$B:$B,"<="&E$2)-SUMIFS(Savings!$J:$J,Savings!$B:$B,"<="&E$2) -> 13989.89 | F6: =Savings!$K$3+SUMIFS(Savings!$H:$H,Savings!$B:$B,"<="&F$2)-SUMIFS(Savings!$J:$J,Savings!$B:$B,"<="&F$2) -> 13192.89 | G6: =Savings!$K$3+SUMIFS(Savings!$H:$H,Savings!$B:$B,"<="&G$2)-SUMIFS(Savings!$J:$J,Savings!$B:$B,"<="&G$2) -> 12396.89 | H6: =Savings!$K$3+SUMIFS(Savings!$H:$H,Savings!$B:$B,"<="&H$2)-SUMIFS(Savings!$J:$J,Savings!$B:$B,"<="&H$2) -> 12396.89
A7: Austin's Credit | B7: ='Austin''s Credit'!$K$3+SUMIFS('Austin''s Credit'!$H:$H,'Austin''s Credit'!$B:$B,"<="&B$2)-SUMIFS('Austin''s Credit'!$J:$J,'Austin''s Credit'!$B:$B,"<="&B$2) -> 0 | C7: ='Austin''s Credit'!$K$3+SUMIFS('Austin''s Credit'!$H:$H,'Austin''s Credit'!$B:$B,"<="&C$2)-SUMIFS('Austin''s Credit'!$J:$J,'Austin''s Credit'!$B:$B,"<="&C$2) -> 0 | D7: ='Austin''s Credit'!$K$3+SUMIFS('Austin''s Credit'!$H:$H,'Austin''s Credit'!$B:$B,"<="&D$2)-SUMIFS('Austin''s Credit'!$J:$J,'Austin''s Credit'!$B:$B,"<="&D$2) -> 0.35 | E7: ='Austin''s Credit'!$K$3+SUMIFS('Austin''s Credit'!$H:$H,'Austin''s Credit'!$B:$B,"<="&E$2)-SUMIFS('Austin''s Credit'!$J:$J,'Austin''s Credit'!$B:$B,"<="&E$2) -> 0.35 | F7: ='Austin''s Credit'!$K$3+SUMIFS('Austin''s Credit'!$H:$H,'Austin''s Credit'!$B:$B,"<="&F$2)-SUMIFS('Austin''s Credit'!$J:$J,'Austin''s Credit'!$B:$B,"<="&F$2) -> 0.35 | G7: ='Austin''s Credit'!$K$3+SUMIFS('Austin''s Credit'!$H:$H,'Austin''s Credit'!$B:$B,"<="&G$2)-SUMIFS('Austin''s Credit'!$J:$J,'Austin''s Credit'!$B:$B,"<="&G$2) -> 0.35 | H7: ='Austin''s Credit'!$K$3+SUMIFS('Austin''s Credit'!$H:$H,'Austin''s Credit'!$B:$B,"<="&H$2)-SUMIFS('Austin''s Credit'!$J:$J,'Austin''s Credit'!$B:$B,"<="&H$2) -> 0.35
A8: Rochelle's Credit | B8: ='Rochelle''s Credit'!$K$3+SUMIFS('Rochelle''s Credit'!$H:$H,'Rochelle''s Credit'!$B:$B,"<="&B$2)-SUMIFS('Rochelle''s Credit'!$J:$J,'Rochelle''s Credit'!$B:$B,"<="&B$2) -> 0 | C8: ='Rochelle''s Credit'!$K$3+SUMIFS('Rochelle''s Credit'!$H:$H,'Rochelle''s Credit'!$B:$B,"<="&C$2)-SUMIFS('Rochelle''s Credit'!$J:$J,'Rochelle''s Credit'!$B:$B,"<="&C$2) -> 0 | D8: ='Rochelle''s Credit'!$K$3+SUMIFS('Rochelle''s Credit'!$H:$H,'Rochelle''s Credit'!$B:$B,"<="&D$2)-SUMIFS('Rochelle''s Credit'!$J:$J,'Rochelle''s Credit'!$B:$B,"<="&D$2) -> 0 | E8: ='Rochelle''s Credit'!$K$3+SUMIFS('Rochelle''s Credit'!$H:$H,'Rochelle''s Credit'!$B:$B,"<="&E$2)-SUMIFS('Rochelle''s Credit'!$J:$J,'Rochelle''s Credit'!$B:$B,"<="&E$2) -> 0 | F8: ='Rochelle''s Credit'!$K$3+SUMIFS('Rochelle''s Credit'!$H:$H,'Rochelle''s Credit'!$B:$B,"<="&F$2)-SUMIFS('Rochelle''s Credit'!$J:$J,'Rochelle''s Credit'!$B:$B,"<="&F$2) -> 0 | G8: ='Rochelle''s Credit'!$K$3+SUMIFS('Rochelle''s Credit'!$H:$H,'Rochelle''s Credit'!$B:$B,"<="&G$2)-SUMIFS('Rochelle''s Credit'!$J:$J,'Rochelle''s Credit'!$B:$B,"<="&G$2) -> 0 | H8: ='Rochelle''s Credit'!$K$3+SUMIFS('Rochelle''s Credit'!$H:$H,'Rochelle''s Credit'!$B:$B,"<="&H$2)-SUMIFS('Rochelle''s Credit'!$J:$J,'Rochelle''s Credit'!$B:$B,"<="&H$2) -> 0
A9: Total | B9: =SUM(B6:B8,B3) -> 25098.91 | C9: =SUM(C6:C8,C3) -> 25098.91 | D9: =SUM(D6:D8,D3) -> 24455.18 | E9: =SUM(E6:E8,E3) -> 23482.99 | F9: =SUM(F6:F8,F3) -> 21786.97 | G9: =SUM(G6:G8,G3) -> 21277.28 | H9: =SUM(H6:H8,H3) -> 21277.28

Sheet Budget
A1: 11 | B1: =EDATE(DATE(2012,1,1),M2) -> 2012-11-01 | C1: Budget | D1: 3
B2: Category | C2: Remaining | D2: Actual | E2: Checking | F2: Savings | G2: A's Cred | H2: C's Cred | I2: Budget | J2: Remainder w/cap | K2: Actual | L2: 250 | M2: 10
B3: Baby Supplies | C3: =I3-D3 -> -143.3 | D3: =SUM(E3:H3) -> 183.3 | E3: =SUMIFS(Checking!$J:$J,Checking!$F:$F,$B3,Checking!$B:$B,">="&$B$1,Checking!$B:$B,"<"&EDATE($B$1,1))-SUMIFS(Checking!$H:$H,Checking!$F:$F,$B3,Checking!$B:$B,">="&$B$1,Checking!$B:$B,"<="&EDATE($B$1,1)) -> 183.3 | F3: =SUMIFS(Savings!$J:$J,Savings!$F:$F,$B3,Savings!$B:$B,">="&$B$1,Savings!$B:$B,"<="&EDATE($B$1,1))-SUMIFS(Savings!$H:$H,Savings!$F:$F,$B3,Savings!$B:$B,">="&$B$1,Savings!$B:$B,"<="&EDATE($B$1,1)) -> 0 | G3: =SUMIFS('Austin''s Credit'!$J:$J,'Austin''s Credit'!$F:$F,$B3,'Austin''s Credit'!$B:$B,">="&$B$1,'Austin''s Credit'!$B:$B,"<="&EDATE($B$1,1))-SUMIFS('Austin''s Credit'!$H:$H,'Austin''s Credit'!$F:$F,$B3,'Austin''s Credit'!$B:$B,">="&$B$1,'Austin''s Credit'!$B:$B,"<="&EDATE($B$1,1)) -> 0 | I3: 40 | J3: =IF(IF(I3-D3<0,0,I3-D3)>$L$2,IF(I3-D3<0,0,I3-D3)/10,IF(I3-D3<0,0,I3-D3)) -> 0 | K3: =IF(I3>$L$2,D3/10,D3) -> 183.3
B4: Books & Supplies | C4: 5 | D4: 0 | E4: =SUMIFS(Checking!$J:$J,Checking!$F:$F,$B4,Checking!$B:$B,">="&$B$1,Checking!$B:$B,"<"&EDATE($B$1,1))-SUMIFS(Checking!$H:$H,Checking!$F:$F,$B4,Checking!$B:$B,">="&$B$1,Checking!$B:$B,"<="&EDATE($B$1,1)) -> 0 | F4: =SUMIFS(Savings!$J:$J,Savings!$F:$F,$B4,Savings!$B:$B,">="&$B$1,Savings!$B:$B,"<="&EDATE($B$1,1))-SUMIFS(Savings!$H:$H,Savings!$F:$F,$B4,Savings!$B:$B,">="&$B$1,Savings!$B:$B,"<="&EDATE($B$1,1)) -> 0 | G4: =SUMIFS('Austin''s Credit'!$J:$J,'Austin''s Credit'!$F:$F,$B4,'Austin''s Credit'!$B:$B,">="&$B$1,'Austin''s Credit'!$B:$B,"<="&EDATE($B$1,1))-SUMIFS('Austin''s Credit'!$H:$H,'Austin''s Credit'!$F:$F,$B4,'Austin''s Credit'!$B:$B,">="&$B$1,'Austin''s Credit'!$B:$B,"<="&EDATE($B$1,1)) -> 0 | I4: 5 | J4: =IF(IF(I4-D4<0,0,I4-D4)>$L$2,IF(I4-D4<0,0,I4-D4)/10,IF(I4-D4<0,0,I4-D4)) -> 5 | K4: =IF(I4>$L$2,D4/10,D4) -> 0
B5: Dates | C5: -57.6 | D5: 103.6 | E5: =SUMIFS(Checking!$J:$J,Checking!$F:$F,$B5,Checking!$B:$B,">="&$B$1,Checking!$B:$B,"<"&EDATE($B$1,1))-SUMIFS(Checking!$H:$H,Checking!$F:$F,$B5,Checking!$B:$B,">="&$B$1,Checking!$B:$B,"<="&EDATE($B$1,1)) -> 103.6 | F5: =SUMIFS(Savings!$J:$J,Savings!$F:$F,$B5,Savings!$B:$B,">="&$B$1,Savings!$B:$B,"<="&EDATE($B$1,1))-SUMIFS(Savings!$H:$H,Savings!$F:$F,$B5,Savings!$B:$B,">="&$B$1,Savings!$B:$B,"<="&EDATE($B$1,1)) -> 0 | G5: =SUMIFS('Austin''s Credit'!$J:$J,'Austin''s Credit'!$F:$F,$B5,'Austin''s Credit'!$B:$B,">="&$B$1,'Austin''s Credit'!$B:$B,"<="&EDATE($B$1,1))-SUMIFS('Austin''s Credit'!$H:$H,'Austin''s Credit'!$F:$F,$B5,'Austin''s Credit'!$B:$B,">="&$B$1,'Austin''s Credit'!$B:$B,"<="&EDATE($B$1,1)) -> 0 | I5: 46 | J5: =IF(IF(I5-D5<0,0,I5-D5)>$L$2,IF(I5-D5<0,0,I5-D5)/10,IF(I5-D5<0,0,I5-D5)) -> 0 | K5: =IF(I5>$L$2,D5/10,D5) -> 103.6
B6: Doctor | C6: 1571.9 | D6: 273.1 | E6: =SUMIFS(Checking!$J:$J,Checking!$F:$F,$B6,Checking!$B:$B,">="&$B$1,Checking!$B:$B,"<"&EDATE($B$1,1))-SUMIFS(Checking!$H:$H,Checking!$F:$F,$B6,Checking!$B:$B,">="&$B$1,Checking!$B:$B,"<="&EDATE($B$1,1)) -> 273.1 | F6: =SUMIFS(Savings!$J:$J,Savings!$F:$F,$B6,Savings!$B:$B,">="&$B$1,Savings!$B:$B,"<="&EDATE($B$1,1))-SUMIFS(Savings!$H:$H,Savings!$F:$F,$B6,Savings!$B:$B,">="&$B$1,Savings!$B:$B,"<="&EDATE($B$1,1)) -> 0 | G6: =SUMIFS('Austin''s Credit'!$J:$J,'Austin''s Credit'!$F:$F,$B6,'Austin''s Credit'!$B:$B,">="&$B$1,'Austin''s Credit'!$B:$B,"<="&EDATE($B$1,1))-SUMIFS('Austin''s Credit'!$H:$H,'Austin''s Credit'!$F:$F,$B6,'Austin''s Credit'!$B:$B,">="&$B$1,'Austin''s Credit'!$B:$B,"<="&EDATE($B$1,1)) -> 0 | I6: 1845 | J6: =IF(IF(I6-D6<0,0,I6-D6)>$L$2,IF(I6-D6<0,0,I6-D6)/10,IF(I6-D6<0,0,I6-D6)) -> 157.19 | K6: =IF(I6>$L$2,D6/10,D6) -> 27.31
B7: Fast Offering | C7: -172.1 | D7: 192.1 | E7: =SUMIFS(Checking!$J:$J,Checking!$F:$F,$B7,Checking!$B:$B,">="&$B$1,Checking!$B:$B,"<"&EDATE($B$1,1))-SUMIFS(Checking!$H:$H,Checking!$F:$F,$B7,Checking!$B:$B,">="&$B$1,Checking!$B:$B,"<="&EDATE($B$1,1)) -> 192.1 | F7: =SUMIFS(Savings!$J:$J,Savings!$F:$F,$B7,Savings!$B:$B,">="&$B$1,Savings!$B:$B,"<="&EDATE($B$1,1))-SUMIFS(Savings!$H:$H,Savings!$F:$F,$B7,Savings!$B:$B,">="&$B$1,Savings!$B:$B,"<="&EDATE($B$1,1)) -> 0 | G7: =SUMIFS('Austin''s Credit'!$J:$J,'Austin''s Credit'!$F:$F,$B7,'Austin''s Credit'!$B:$B,">="&$B$1,'Austin''s Credit'!$B:$B,"<="&EDATE($B$1,1))-SUMIFS('Austin''s Credit'!$H:$H,'Austin''s Credit'!$F:$F,$B7,'Austin''s Credit'!$B:$B,">="&$B$1,'Austin''s Credit'!$B:$B,"<="&EDATE($B$1,1)) -> 0 | I7: 20 | J7: =IF(IF(I7-D7<0,0,I7-D7)>$L$2,IF(I7-D7<0,0,I7-D7)/10,IF(I7-D7<0,0,I7-D7)) -> 0 | K7: =IF(I7>$L$2,D7/10,D7) -> 192.1
B8: Gas & Fuel | C8: -87.7 | D8: 277.7 | E8: =SUMIFS(Checking!$J:$J,Checking!$F:$F,$B8,Checking!$B:$B,">="&$B$1,Checking!$B:$B,"<"&EDATE($B$1,1))-SUMIFS(Checking!$H:$H,Checking!$F:$F,$B8,Checking!$B:$B,">="&$B$1,Checking!$B:$B,"<="&EDATE($B$1,1)) -> 277.7 | F8: =SUMIFS(Savings!$J:$J,Savings!$F:$F,$B8,Savings!$B:$B,">="&$B$1,Savings!$B:$B,"<="&EDATE($B$1,1))-SUMIFS(Savings!$H:$H,Savings!$F:$F,$B8,Savings!$B:$B,">="&$B$1,Savings!$B:$B,"<="&EDATE($B$1,1)) -> 0 | G8: =SUMIFS('Austin''s Credit'!$J:$J,'Austin''s Credit'!$F:$F,$B8,'Austin''s Credit'!$B:$B,">="&$B$1,'Austin''s Credit'!$B:$B,"<="&EDATE($B$1,1))-SUMIFS('Austin''s Credit'!$H:$H,'Austin''s Credit'!$F:$F,$B8,'Austin''s Credit'!$B:$B,">="&$B$1,'Austin''s Credit'!$B:$B,"<="&EDATE($B$1,1)) -> 0 | I8: 190 | J8: 0 | K8: 277.7
B9: Gifts for Others | C9: 196.5 | D9: 103.5 | E9: =SUMIFS(Checking!$J:$J,Checking!$F:$F,$B9,Checking!$B:$B,">="&$B$1,Checking!$B:$B,"<"&EDATE($B$1,1))-SUMIFS(Checking!$H:$H,Checking!$F:$F,$B9,Checking!$B:$B,">="&$B$1,Checking!$B:$B,"<="&EDATE($B$1,1)) -> 103.5 | F9: =SUMIFS(Savings!$J:$J,Savings!$F:$F,$B9,Savings!$B:$B,">="&$B$1,Savings!$B:$B,"<="&EDATE($B$1,1))-SUMIFS(Savings!$H:$H,Savings!$F:$F,$B9,Savings!$B:$B,">="&$B$1,Savings!$B:$B,"<="&EDATE($B$1,1)) -> 0 | G9: =SUMIFS('Austin''s Credit'!$J:$J,'Austin''s Credit'!$F:$F,$B9,'Austin''s Credit'!$B:$B,">="&$B$1,'Austin''s Credit'!$B:$B,"<="&EDATE($B$1,1))-SUMIFS('Austin''s Credit'!$H:$H,'Austin''s Credit'!$F:$F,$B9,'Austin''s Credit'!$B:$B,">="&$B$1,'Austin''s Credit'!$B:$B,"<="&EDATE($B$1,1)) -> 0 | I9: 300 | J9: 196.5 | K9: 10.35
B10: Groceries | C10: -410.3 | D10: 560.3 | E10: =SUMIFS(Checking!$J:$J,Checking!$F:$F,$B10,Checking!$B:$B,">="&$B$1,Checking!$B:$B,"<"&EDATE($B$1,1))-SUMIFS(Checking!$H:$H,Checking!$F:$F,$B10,Checking!$B:$B,">="&$B$1,Checking!$B:$B,"<="&EDATE($B$1,1)) -> 560.3 | F10: =SUMIFS(Savings!$J:$J,Savings!$F:$F,$B10,Savings!$B:$B,">="&$B$1,Savings!$B:$B,"<="&EDATE($B$1,1))-SUMIFS(Savings!$H:$H,Savings!$F:$F,$B10,Savings!$B:$B,">="&$B$1,Savings!$B:$B,"<="&EDATE($B$1,1)) -> 0 | G10: =SUMIFS('Austin''s Credit'!$J:$J,'Austin''s Credit'!$F:$F,$B10,'Austin''s Credit'!$B:$B,">="&$B$1,'Austin''s Credit'!$B:$B,"<="&EDATE($B$1,1))-SUMIFS('Austin''s Credit'!$H:$H,'Austin''s Credit'!$F:$F,$B10,'Austin''s Credit'!$B:$B,">="&$B$1,'Austin''s Credit'!$B:$B,"<="&EDATE($B$1,1)) -> 0 | I10: 150 | J10: 0 | K10: 560.3
B11: Misc | C11: -110 | D11: 210 | E11: =SUMIFS(Checking!$J:$J,Checking!$F:$F,$B11,Checking!$B:$B,">="&$B$1,Checking!$B:$B,"<"&EDATE($B$1,1))-SUMIFS(Checking!$H:$H,Checking!$F:$F,$B11,Checking!$B:$B,">="&$B$1,Checking!$B:$B,"<="&EDATE($B$1,1)) -> 210 | F11: =SUMIFS(Savings!$J:$J,Savings!$F:$F,$B11,Savings!$B:$B,">="&$B$1,Savings!$B:$B,"<="&EDATE($B$1,1))-SUMIFS(Savings!$H:$H,Savings!$F:$F,$B11,Savings!$B:$B,">="&$B$1,Savings!$B:$B,"<="&EDATE($B$1,1)) -> 0 | G11: =SUMIFS('Austin''s Credit'!$J:$J,'Austin''s Credit'!$F:$F,$B11,'Austin''s Credit'!$B:$B,">="&$B$1,'Austin''s Credit'!$B:$B,"<="&EDATE($B$1,1))-SUMIFS('Austin''s Credit'!$H:$H,'Austin''s Credit'!$F:$F,$B11,'Austin''s Credit'!$B:$B,">="&$B$1,'Austin''s Credit'!$B:$B,"<="&EDATE($B$1,1)) -> 0 | I11: 100 | J11: 0 | K11: 210
B12: Mobile Phone | C12: 249.8 | D12: 50.2 | E12: =SUMIFS(Checking!$J:$J,Checking!$F:$F,$B12,Checking!$B:$B,">="&$B$1,Checking!$B:$B,"<"&EDATE($B$1,1))-SUMIFS(Checking!$H:$H,Checking!$F:$F,$B12,Checking!$B:$B,">="&$B$1,Checking!$B:$B,"<="&EDATE($B$1,1)) -> 50.2 | F12: =SUMIFS(Savings!$J:$J,Savings!$F:$F,$B12,Savings!$B:$B,">="&$B$1,Savings!$B:$B,"<="&EDATE($B$1,1))-SUMIFS(Savings!$H:$H,Savings!$F:$F,$B12,Savings!$B:$B,">="&$B$1,Savings!$B:$B,"<="&EDATE($B$1,1)) -> 0 | G12: =SUMIFS('Austin''s Credit'!$J:$J,'Austin''s Credit'!$F:$F,$B12,'Austin''s Credit'!$B:$B,">="&$B$1,'Austin''s Credit'!$B:$B,"<="&EDATE($B$1,1))-SUMIFS('Austin''s Credit'!$H:$H,'Austin''s Credit'!$F:$F,$B12,'Austin''s Credit'!$B:$B,">="&$B$1,'Austin''s Credit'!$B:$B,"<="&EDATE($B$1,1)) -> 0 | I12: 300 | J12: 249.8 | K12: 5.02
B13: Other Meals | C13: 5 | D13: 0 | E13: =SUMIFS(Checking!$J:$J,Checking!$F:$F,$B13,Checking!$B:$B,">="&$B$1,Checking!$B:$B,"<"&EDATE($B$1,1))-SUMIFS(Checking!$H:$H,Checking!$F:$F,$B13,Checking!$B:$B,">="&$B$1,Checking!$B:$B,"<="&EDATE($B$1,1)) -> 0 | F13: =SUMIFS(Savings!$J:$J,Savings!$F:$F,$B13,Savings!$B:$B,">="&$B$1,Savings!$B:$B,"<="&EDATE($B$1,1))-SUMIFS(Savings!$H:$H,Savings!$F:$F,$B13,Savings!$B:$B,">="&$B$1,Savings!$B:$B,"<="&EDATE($B$1,1)) -> 0 | G13: =SUMIFS('Austin''s Credit'!$J:$J,'Austin''s Credit'!$F:$F,$B13,'Austin''s Credit'!$B:$B,">="&$B$1,'Austin''s Credit'!$B:$B,"<="&EDATE($B$1,1))-SUMIFS('Austin''s Credit'!$H:$H,'Austin''s Credit'!$F:$F,$B13,'Austin''s Credit'!$B:$B,">="&$B$1,'Austin''s Credit'!$B:$B,"<="&EDATE($B$1,1)) -> 0 | I13: 5 | J13: 5 | K13: 0
B14: Storage Unit | C14: -77.6 | D14: 132.6 | E14: =SUMIFS(Checking!$J:$J,Checking!$F:$F,$B14,Checking!$B:$B,">="&$B$1,Checking!$B:$B,"<"&EDATE($B$1,1))-SUMIFS(Checking!$H:$H,Checking!$F:$F,$B14,Checking!$B:$B,">="&$B$1,Checking!$B:$B,"<="&EDATE($B$1,1)) -> 132.6 | F14: =SUMIFS(Savings!$J:$J,Savings!$F:$F,$B14,Savings!$B:$B,">="&$B$1,Savings!$B:$B,"<="&EDATE($B$1,1))-SUMIFS(Savings!$H:$H,Savings!$F:$F,$B14,Savings!$B:$B,">="&$B$1,Savings!$B:$B,"<="&EDATE($B$1,1)) -> 0 | G14: =SUMIFS('Austin''s Credit'!$J:$J,'Austin''s Credit'!$F:$F,$B14,'Austin''s Credit'!$B:$B,">="&$B$1,'Austin''s Credit'!$B:$B,"<="&EDATE($B$1,1))-SUMIFS('Austin''s Credit'!$H:$H,'Austin''s Credit'!$F:$F,$B14,'Austin''s Credit'!$B:$B,">="&$B$1,'Austin''s Credit'!$B:$B,"<="&EDATE($B$1,1)) -> 0 | I14: 55 | J14: 0 | K14: 132.6
B15: Tithing | C15: 58.8 | D15: 141.2 | E15: =SUMIFS(Checking!$J:$J,Checking!$F:$F,$B15,Checking!$B:$B,">="&$B$1,Checking!$B:$B,"<"&EDATE($B$1,1))-SUMIFS(Checking!$H:$H,Checking!$F:$F,$B15,Checking!$B:$B,">="&$B$1,Checking!$B:$B,"<="&EDATE($B$1,1)) -> 141.2 | F15: =SUMIFS(Savings!$J:$J,Savings!$F:$F,$B15,Savings!$B:$B,">="&$B$1,Savings!$B:$B,"<="&EDATE($B$1,1))-SUMIFS(Savings!$H:$H,Savings!$F:$F,$B15,Savings!$B:$B,">="&$B$1,Savings!$B:$B,"<="&EDATE($B$1,1)) -> 0 | G15: =SUMIFS('Austin''s Credit'!$J:$J,'Austin''s Credit'!$F:$F,$B15,'Austin''s Credit'!$B:$B,">="&$B$1,'Austin''s Credit'!$B:$B,"<="&EDATE($B$1,1))-SUMIFS('Austin''s Credit'!$H:$H,'Austin''s Credit'!$F:$F,$B15,'Austin''s Credit'!$B:$B,">="&$B$1,'Austin''s Credit'!$B:$B,"<="&EDATE($B$1,1)) -> 0 | I15: 200 | J15: 58.8 | K15: 141.2
B16: Total | C16: =SUM(C3:C15) -> 1028.4 | D16: 2227.6 | E16: 2227.6 | F16: 0 | G16: 0 | H16: 0 | I16: 3256
B17: Monthly Allowance | I17: 3256
I18: =I16-I17 -> 0

Sheet Checking
A1: Checking
A2: Column1 | B2: Date | C2: Check # | D2: Payee | E2: Memo | F2: Category | G2: Notes | H2: Deposit | I2: Clr | J2: Payment | K2: Balance
B3: 2012-08-12 | F3: Rochelle's Money | H3: 100 | I3: R | K3: 7152.81
B4: 2012-08-12 | E4: Beginning Balance | I4: R | K4: =K3+H4-J4 -> 7152.81
B5: 2012-08-13 | D5: AMERICAN APPAREL-0 SEATTLE WA 4 | E5: CHECK CRD PURCHASE 08/11 AMERICAN APPAREL-0 SEATTLE WA 434258XXXXXX0954 282224722041255 ?MCC=5699 | F5: Clothing | I5: R | J5: 32.6 | K5: 7120.21
B6: 2012-08-13 | D6: USA GASOLINE 62 KENNEWICK WA | E6: POS PURCHASE - USA GASOLINE 62 KENNEWICK WA 0954 00302226609599213 | F6: Gas & Fuel | I6: R | J6: 16.1 | K6: 7104.11
B7: 2012-08-13 | D7: FRED-MEYER #0608 SEATTLE WA 4 | E7: CHECK CRD PURCHASE 08/11 FRED-MEYER #0608 SEATTLE WA 434258XXXXXX0954 082224790526316 ?MCC=5411 | F7: Groceries | I7: R | J7: 28.1 | K7: 7076.01
B8: 2012-08-13 | D8: SEATTLE 684-PARK SEATTLE WA 4 | E8: CHECK CRD PURCHASE 08/11 SEATTLE 684-PARK SEATTLE WA 434258XXXXXX0954 002224705532286 ?MCC=9399 | F8: Parking | I8: R | J8: 111.6 | K8: 6964.41
B9: 2012-08-13 | D9: ORCA KCM AUTOLOAD 206-6247277 WA 4 | E9: CHECK CRD PURCHASE 08/11 ORCA KCM AUTOLOAD 206-6247277 WA 434258XXXXXX0954 282223256759004 ?MCC=9399 | F9: Public Transportation | I9: R | J9: 129.6 | K9: 6834.81
B10: 2012-08-13 | D10: GROUPON INC 877-788-7858 IL 4 | E10: CHECK CRD PURCHASE 08/12 GROUPON INC 877-788-7858 IL 434258XXXXXX8672 082224658005480 ?MCC=7299 | F10: Seattle Fun Fund | I10: R | J10: 119.3 | K10: 6715.51
B11: 2012-08-14 | E11: Employeer | F11: Austin's Net Income | H11: 114.3 | I11: R | K11: 6829.81
B12: 2012-08-14 | D12: GREASE MONKEY AMERICAN FORKUT | E12: POS PURCHASE - GREASE MONKEY AMERICAN FORKUT 8672 00000227001753402 | F12: Auto Insurance | I12: R | J12: 80.3 | K12: 6749.51
B13: 2012-08-14 | D13: COSTCO GAS | E13: POS PURCHASE - COSTCO GAS #073 LEHI UT 8672 00302227732463530 | F13: Gas & Fuel | I13: R | J13: 142.5 | K13: 6607.01
B14: 2012-08-14 | D14: CHEVRON 00073792 BURLEY ID 4 | E14: CHECK CRD PURCHASE 08/13 CHEVRON 00073792 BURLEY ID 434258XXXXXX0954 582227036392046 ?MCC=5542 | F14: Gas & Fuel | I14: R | J14: 122 | K14: 6485.01
B15: 2012-08-14 | D15: MAVERIK #439 BAKR CITY OR 4 | E15: CHECK CRD PURCHASE 08/13 MAVERIK #439 BAKR CITY OR 434258XXXXXX0954 082226705567546 ?MCC=5542 | F15: Gas & Fuel | I15: R | J15: 22.5 | K15: 6462.51
B16: 2012-08-14 | D16: Wal Mart Super AMERICAN FORKUT | E16: POS PURCHASE - Wal Mart Super AMERICAN FORKUT 8672 00000222774510735 | F16: Groceries | I16: R | J16: 90.1 | K16: 6372.41
B17: 2012-08-14 | D17: TARGET T1814 AMERICAN FORKUT | E17: POS PURCHASE - TARGET T1814 AMERICAN FORKUT 8672 00000000000337700 | F17: Home Supplies | I17: R | J17: 21.3 | K17: 6351.11
B18: 2012-08-14 | E18: INTEREST PAYMENT | F18: Interest Income | H18: 0.02 | I18: R | K18: 6351.13
B19: 2012-08-14 | D19: SOMERS RICHARD | E19: TRANSFER FROM SOMERS RICHARD REF #PPEJX7FSWF RICHARD PHONE JULY 2012 | F19: Mobile Phone | H19: 36.8 | I19: R | K19: 6387.93
B20: 2012-08-14 | D20: SOMERS RICHARD | E20: TRANSFER FROM SOMERS RICHARD REF #PPETMCW9BS PAM IPHONE JULY 2012 | F20: Mobile Phone | H20: 86.8 | I20: R | K20: 6474.73
B21: 2012-08-15 | D21: PERKINS FAMILY RES 208-6783501 ID 4 | E21: CHECK CRD PURCHASE 08/13 PERKINS FAMILY RES 208-6783501 ID 434258XXXXXX0954 002227031145354 ?MCC=5812 | F21: Other Meals | I21: R | J21: 12.7 | K21: 6462.03
B22: 2012-08-16 | D22: AMAZON MKTPLACE PM AMZN.COM/BILL WA 4 | E22: CHECK CRD PURCHASE 08/15 AMAZON MKTPLACE PM AMZN.COM/BILL WA 434258XXXXXX0954 082227839459965 ?MCC=5942 | F22: Books & Supplies | I22: R | J22: 149.2 | K22: 6312.83
B23: 2012-08-16 | D23: WALGREENS #9681 LEHI UT 4 | E23: CHECK CRD PURCHASE 08/15 WALGREENS #9681 LEHI UT 434258XXXXXX8672 582228638849586 ?MCC=5912 | F23: Misc | I23: R | J23: 49.6 | K23: 6263.23
B24: 2012-08-16 | D24: UTAH-DMV RENEWAL E 801-297-3809 UT 4 | E24: CHECK CRD PURCHASE 08/15 UTAH-DMV RENEWAL E 801-297-3809 UT 434258XXXXXX8672 282227695633625 ?MCC=9399 | F24: Service & Parts | I24: R | J24: 146.8 | K24: 6116.43
B25: 2012-08-17 | D25: COSTCO WHSE | E25: POS PURCHASE - COSTCO WHSE #07 LEHI UT 8672 00582230713970472 | F25: Groceries | I25: R | J25: 29.9 | K25: 6086.53
B26: 2012-08-17 | D26: Wal Mart Super AMERICAN FORKUT | E26: POS PURCHASE - Wal Mart Super AMERICAN FORKUT 8672 00000223093285392 | F26: Groceries | I26: R | J26: 78.9 | K26: 6007.63
B27: 2012-08-17 | D27: Wal Mart Super SALT LAKE CITUT | E27: POS PURCHASE - Wal Mart Super SALT LAKE CITUT 8672 00000223029795320 | F27: Groceries | I27: R | J27: 89.5 | K27: 5918.13
B28: 2012-08-17 | D28: Wal Mart Super SALT LAKE CITUT | E28: POS PURCHASE - Wal Mart Super SALT LAKE CITUT 8672 00000223027501630 | F28: Groceries | I28: R | J28: 92.9 | K28: 5825.23
B29: 2012-08-17 | E29: ONLINE TRANSFER REF #IBE2FZDXTV FROM SAVINGS VIA MOBILE | F29: Savings | H29: 2500 | I29: R | K29: 8325.23
B30: 2012-08-20 | D30: FAST GAS #6 AMERICAN FORK UT 4 | E30: CHECK CRD PURCHASE 08/17 FAST GAS #6 AMERICAN FORK UT 434258XXXXXX0954 082230489762757 ?MCC=5542 | F30: Gas & Fuel | I30: R | J30: 131 | K30: 8194.23
B31: 2012-08-20 | D31: ARBYS 1916 0001 AMERICAN FORK UT 4 | E31: CHECK CRD PURCHASE 08/16 ARBYS 1916 0001 AMERICAN FORK UT 434258XXXXXX0954 082230100884463 ?MCC=5814 | F31: Other Meals | I31: R | J31: 87.4 | K31: 8106.83
B32: 2012-08-20 | D32: DENNIS SALT LAKE C SALT LAKE CIT UT 4 | E32: CHECK CRD PURCHASE 08/17 DENNIS SALT LAKE C SALT LAKE CIT UT 434258XXXXXX8672 162230826539556 ?MCC=5699 | F32: Reimbursable | I32: R | J32: 31.5 | K32: 8075.33
B33: 2012-08-22 | E33: BYU Tuition Pmt Tuition 120820 XXXXX8613 Austin Somers | F33: Tuition | I33: R | J33: 66.2 | K33: 8009.13
B34: 2012-08-24 | D34: VERIZON WRLS MYACC 800-9220204 CA 4 | E34: CHECK CRD PURCHASE 08/22 VERIZON WRLS MYACC 800-9220204 CA 434258XXXXXX0954 162235815228227 ?MCC=4899 | F34: Mobile Phone | I34: R | J34: 71 | K34: 7938.13
B35: 2012-08-27 | D35: KOHL'S | E35: POS PURCHASE - KOHL'S #0777 63 AMERICAN FORKUT 8672 00302238746018724 | F35: Clothing | I35: R | J35: 131.7 | K35: 7806.43
B36: 2012-08-27 | C36: 185 | E36: CHECK # 185 (View) | F36: Fast Offering | I36: R | J36: 132.8 | K36: =K35+H36-J36 -> 7673.63
B37: 2012-08-27 | E37: DEPOSIT MADE IN A BRANCH/STORE #536288441 (View Details) | F37: Groceries | H37: 143.2 | I37: R | K37: 7816.83
B38: 2012-08-27 | D38: Wal Mart Super AMERICAN FORKUT | E38: POS PURCHASE - Wal Mart Super AMERICAN FORKUT 0954 00000223860741371 | F38: Groceries | I38: R | J38: 43.6 | K38: 7773.23
B39: 2012-08-27 | D39: COSTCO WHSE | E39: POS PURCHASE - COSTCO WHSE #07 LEHI UT 0954 00302238811356649 | F39: Groceries | I39: R | J39: 31.8 | K39: 7741.43
B40: 2012-08-27 | C40: 184 | E40: CHECK # 184 * (View) | F40: Groceries | I40: R | J40: 110 | K40: 7631.43
B41: 2012-08-27 | D41: SOMERS RICHARD | E41: TRANSFER FROM SOMERS RICHARD REF #PPE885N8DY PAM IPHONE AUGUST 2012 | F41: Mobile Phone | H41: 76.5 | I41: R | K41: 7707.93
B42: 2012-08-27 | E42: Somers Haley BILL PMT 082412 BILL PMT Somers Haley | F42: Mobile Phone | H42: 36.5 | I42: R | K42: 7744.43
B43: 2012-08-27 | D43: SOMERS RICHARD | E43: TRANSFER FROM SOMERS RICHARD REF #PPEG28MCNK RICHARD PHONE AUGUST 2012 | F43: Mobile Phone | H43: 36.5 | I43: R | K43: 7780.93
B44: 2012-08-27 | E44: DEPOSIT MADE IN A BRANCH/STORE #536288441 (View Details) | F44: Reimbursable | H44: 316.8 | I44: R | K44: 8097.73
B45: 2012-08-27 | C45: 185 | E45: CHECK # 185 (View) | F45: Tithing | I45: R | J45: 99.6 | K45: 7998.13
B46: 2012-08-28 | C46: 181 | E46: CHECK # 181 (View) | F46: Reimbursable | I46: R | J46: 115.9 | K46: 7882.23
B47: 2012-08-28 | D47: Slate Canyon Sto | E47: BILL PAY Slate Canyon Sto ON-LINE No Account Number ON 08-28 | F47: Storage Unit | I47: R | J47: 23.4 | K47: 7858.83
B48: 2012-08-29 | D48: BYU BOOKSTORE PROVO UT 4 | E48: CHECK CRD PURCHASE 08/27 BYU BOOKSTORE PROVO UT 434258XXXXXX0954 162240615431323 ?MCC=8220 | F48: Misc | I48: R | J48: 10 | K48: 7848.83
B49: 2012-08-29 | D49: MARKETPLACE CAFE PROVO UT 4 | E49: CHECK CRD PURCHASE 08/27 MARKETPLACE CAFE PROVO UT 434258XXXXXX0954 082240629268614 ?MCC=5814 | F49: Other Meals | I49: R | J49: 12.3 | K49: 7836.53
B50: 2012-08-30 | E50: DEPOSIT MADE IN A BRANCH/STORE #540944788 (View Details) | F50: Groceries | H50: 142 | I50: R | K50: 7978.53
B51: 2012-08-30 | D51: THANKSGIVING POINT LEHI UT 4 | E51: CHECK CRD PURCHASE 08/28 THANKSGIVING POINT LEHI UT 434258XXXXXX8672 282241602916114 ?MCC=8398 | F51: Misc | I51: R | J51: 58.5 | K51: 7920.03
B52: 2012-08-30 | E52: DEPOSIT MADE IN A BRANCH/STORE #540944788 (View Details) | F52: Other Income | H52: 55 | I52: R | K52: 7975.03
B53: 2012-08-30 | E53: DEPOSIT MADE IN A BRANCH/STORE #540944788 (View Details) | F53: Reimbursable | H53: 470 | I53: R | K53: 8445.03
B54: 2012-08-31 | E54: Employeer | F54: Austin's Net Income | H54: 500 | I54: R | K54: 8945.03
B55: 2012-08-31 | D55: ALPINE LOCK & SAFE AMERICAN FORK UT 4 | E55: CHECK CRD PURCHASE 08/30 ALPINE LOCK & SAFE AMERICAN FORK UT 434258XXXXXX8672 002243641972285 ?MCC=7399 | F55: Misc | I55: R | J55: 87.4 | K55: 8857.63
B56: 2012-08-31 | D56: THANKSGIVING POINT LEHI UT 4 | E56: CHECK CRD PURCHASE 08/28 THANKSGIVING POINT LEHI UT 434258XXXXXX8672 162241670729610 ?MCC=5812 | F56: Rochelle's Money | I56: R | J56: 25.5 | K56: 8832.13
B57: 2012-08-31 | E57: RECURRING TRANSFER REF #OPEQQGLZRM TO SAVINGS XXXXXX8564 | F57: Savings | I57: R | J57: 24.4 | K57: 8807.73
B58: 2012-09-04 | E58: Employeer | F58: Austin's Net Income | H58: 500 | I58: R | K58: 9307.73
B59: 2012-09-04 | D59: CINEMARK THEATRES PROVO UT 4 | E59: CHECK CRD PURCHASE 09/01 CINEMARK THEATRES PROVO UT 434258XXXXXX0954 002245839586042 ?MCC=7832 | F59: Dates | I59: R | J59: 139.8 | K59: 9167.93
B60: 2012-09-04 | D60: SLAB PIZZA LLC PROVO UT 4 | E60: CHECK CRD PURCHASE 09/01 SLAB PIZZA LLC PROVO UT 434258XXXXXX0954 282245850790640 ?MCC=5814 | F60: Dates | I60: R | J60: 92.1 | K60: 9075.83
B61: 2012-09-04 | D61: COSTCO GAS | E61: POS PURCHASE - COSTCO GAS #073 LEHI UT 0954 00302245043899208 | F61: Gas & Fuel | I61: R | J61: 121.5 | K61: 8954.33
B62: 2012-09-04 | D62: TARGET T1814 AMERICAN FORKUT | E62: POS PURCHASE - TARGET T1814 AMERICAN FORKUT 0954 00000000000232225 | F62: Misc | I62: R | J62: 24.8 | K62: 8929.53
B63: 2012-09-04 | D63: THE HOME DEPOT AMERICAN FORKUT | E63: POS PURCHASE - THE HOME DEPOT AMERICAN FORKUT 8672 00000090139983001 | F63: Reimbursable | I63: R | J63: 76.9 | K63: 8852.63
B64: 2012-09-04 | D64: THE HOME DEPOT AMERICAN FORKUT | E64: POS PURCHASE - THE HOME DEPOT AMERICAN FORKUT 0954 00302247630630109 | F64: Reimbursable | I64: R | J64: 43.3 | K64: 8809.33
B65: 2012-09-04 | D65: COSTCO WHSE | E65: POS PURCHASE - COSTCO WHSE #07 LEHI UT 8672 00302248860791025 | F65: Reimbursable | I65: R | J65: 93.1 | K65: 8716.23
B66: 2012-09-05 | E66: Employeer | F66: Austin's Net Income | H66: 255 | I66: R | K66: 8971.23
B67: 2012-09-06 | D67: COSTCO GAS | E67: POS PURCHASE - COSTCO GAS #073 LEHI UT 8672 00582250837575400 | F67: Gas & Fuel | I67: R | J67: 129.7 | K67: 8841.53
B68: 2012-09-06 | E68: BYU Health Plan Insurance 120904 XXXXX0027 Austin Somers | F68: Health Insurance | I68: R | J68: 40.3 | K68: =K67+H68-J68 -> 8801.23
B69: 2012-09-06 | E69: BYU Other Pmt Other 120904 XXXXX0001 Austin Somers | F69: Misc | I69: R | J69: 107.9 | K69: 8693.33
B70: 2012-09-07 | D70: BYU BOOKSTORE PROVO UT 4 | E70: CHECK CRD PURCHASE 09/05 BYU BOOKSTORE PROVO UT 434258XXXXXX0954 162250029573136 ?MCC=8220 | F70: Clothing | I70: R | J70: 79.2 | K70: 8614.13
B71: 2012-09-07 | D71: ARBYS 1916 0001 AMERICAN FORK UT 4 | E71: CHECK CRD PURCHASE 09/04 ARBYS 1916 0001 AMERICAN FORK UT 434258XXXXXX8672 162248745165823 ?MCC=5814 | F71: Other Meals | I71: R | J71: 54.5 | K71: 8559.63
B72: 2012-09-10 | D72: APL*APPLE ITUNES S 866-712-7753 CA 4 | E72: CHECK CRD PURCHASE 09/07 APL*APPLE ITUNES S 866-712-7753 CA 434258XXXXXX0954 082249203757115 ?MCC=5735 | F72: Books & Supplies | I72: R | J72: 39.6 | K72: 8520.03
B73: 2012-09-10 | D73: JCPENNEY 0231 SANDY UT 4 | E73: CHECK CRD PURCHASE 09/07 JCPENNEY 0231 SANDY UT 434258XXXXXX0954 002252071459184 ?MCC=5311 | F73: Clothing | I73: R | J73: 22.6 | K73: 8497.43
B74: 2012-09-10 | D74: IKEA DRAPER DRAPER UT 4 | E74: CHECK CRD PURCHASE 09/07 IKEA DRAPER DRAPER UT 434258XXXXXX0954 002252083281668 ?MCC=5814 | F74: Dates | I74: R | J74: 99 | K74: 8398.43
B75: 2012-09-10 | D75: Wal Mart Super AMERICAN FORKUT | E75: POS PURCHASE - Wal Mart Super AMERICAN FORKUT 0954 00000225284413248 | F75: Toiletries | I75: R | J75: 100.6 | K75: 8297.83
B76: 2012-09-12 | D76: BYU BOOKSTORE PROVO UT 4 | E76: CHECK CRD PURCHASE 09/10 BYU BOOKSTORE PROVO UT 434258XXXXXX0954 162254827327638 ?MCC=8220 | F76: Books & Supplies | I76: R | J76: 88.3 | K76: 8209.53
B77: 2012-09-13 | E77: CHECK CRD PUR RTRN 09/12 JCPENNEY 2770 PROVO UT 434258XXXXXX0954 612257553414691 ?MCC=5311 | F77: Clothing | H77: 20 | I77: R | K77: 8229.53
B78: 2012-09-13 | D78: Wal Mart Super AMERICAN FORKUT | E78: POS PURCHASE - Wal Mart Super AMERICAN FORKUT 8672 00000225702596708 | F78: Reimbursable | I78: R | J78: 18.7 | K78: 8210.83
B79: 2012-09-14 | D79: FAST GAS #6 AMERICAN FORK UT 4 | E79: CHECK CRD PURCHASE 09/12 FAST GAS #6 AMERICAN FORK UT 434258XXXXXX0954 002256483177053 ?MCC=5542 | F79: Gas & Fuel | I79: R | J79: 49.1 | K79: 8161.73
B80: 2012-09-17 | D80: UTOBSTR&GYN8013577 PROVO UT 4 | E80: CHECK CRD PURCHASE 09/13 UTOBSTR&GYN8013577 PROVO UT 434258XXXXXX8672 002257771823200 ?MCC=8011 | F80: Doctor | I80: R | J80: 11.9 | K80: 8149.83
B81: 2012-09-17 | E81: INTEREST PAYMENT | F81: Interest Income | H81: 0.02 | I81: R | K81: 8149.85
B82: 2012-09-17 | D82: THE HOME DEPOT 441 AMERICAN FORK UT 4 | E82: CHECK CRD PURCHASE 09/15 THE HOME DEPOT 441 AMERICAN FORK UT 434258XXXXXX0954 162259813624444 ?MCC=5200 | F82: Reimbursable | I82: R | J82: 79.3 | K82: 8070.55
B83: 2012-09-17 | E83: POS PURCHASE RETURN - THE HOME DEPOT THE HOME DAMERICAN FORKUT 0954 00582259798857590 | F83: Reimbursable | H83: 140.8 | I83: R | K83: 8211.35
B84: 2012-09-18 | E84: Employeer | F84: Austin's Net Income | H84: 700 | I84: R | K84: 8911.35
B85: 2012-09-18 | D85: THE MENS WEARHO OREM UT | E85: POS PURCHASE - THE MENS WEARHO OREM UT 0954 00382262852058715 | F85: Clothing | I85: R | J85: 38.3 | K85: 8873.05
B86: 2012-09-18 | E86: DEPOSIT MADE IN A BRANCH/STORE #567731018 (View Details) | F86: Reimbursable | H86: 559.7 | I86: R | K86: 9432.75
B87: 2012-09-19 | D87: Wal Mart Super AMERICAN FORKUT | E87: POS PURCHASE - Wal Mart Super AMERICAN FORKUT 8672 00000226319742607 | F87: Reimbursable | I87: R | J87: 116.4 | K87: 9316.35
B88: 2012-09-20 | D88: WALGREENS 102 N LEHI UT | E88: POS PURCHASE - WALGREENS 102 N LEHI UT 8672 00582264608292483 | F88: Doctor | I88: R | J88: 126 | K88: 9190.35
B89: 2012-09-24 | D89: FAMOUS FOOTWEAR #1 AMERICAN FORK UT 4 | E89: CHECK CRD PURCHASE 09/22 FAMOUS FOOTWEAR #1 AMERICAN FORK UT 434258XXXXXX0954 082267077512022 ?MCC=5661 | F89: Clothing | I89: R | J89: 107.2 | K89: 9083.15
B90: 2012-09-24 | D90: COSTCO GAS | E90: POS PURCHASE - COSTCO GAS #073 LEHI UT 0954 00302267061773112 | F90: Gas & Fuel | I90: R | J90: 93.1 | K90: 8990.05
B91: 2012-09-25 | D91: SLATE CANYON STO | E91: BILL PAY SLATE CANYON STO ON-LINE No Account Number ON 09-25 | F91: Storage Unit | I91: R | J91: 90 | K91: 8900.05
B92: 2012-09-26 | D92: KID TO KID AMERICA LEHI UT 4 | E92: CHECK CRD PURCHASE 09/24 KID TO KID AMERICA LEHI UT 434258XXXXXX8672 282268710710328 ?MCC=5641 | F92: Baby Supplies | I92: R | J92: 98.1 | K92: 8801.95
B93: 2012-09-26 | D93: COSTCO GAS | E93: POS PURCHASE - COSTCO GAS #073 LEHI UT 8672 00462270672198385 | F93: Gas & Fuel | I93: R | J93: 39.2 | K93: 8762.75
B94: 2012-09-26 | D94: KID TO KID AMERICA LEHI UT 4 | E94: CHECK CRD PURCHASE 09/24 KID TO KID AMERICA LEHI UT 434258XXXXXX8672 282268710710328 ?MCC=5641 | F94: Gifts for Others | I94: R | K94: 8762.75
B95: 2012-09-26 | D95: SOMERS RICHARD | E95: TRANSFER FROM SOMERS RICHARD REF #PPEJXKKT48 PAM IPHONE SEPTEMBER 2012 | F95: Mobile Phone | H95: 46.5 | I95: R | K95: 8809.25
B96: 2012-09-26 | D96: SOMERS RICHARD | E96: TRANSFER FROM SOMERS RICHARD REF #PPETMQ2DXX PAM IPHONE SEPTEMBER 2012 | F96: Mobile Phone | H96: 30 | I96: R | K96: 8839.25
B97: 2012-09-26 | D97: SOMERS RICHARD | E97: TRANSFER FROM SOMERS RICHARD REF #PPE88F3FRQ RICHARD PHONE SEPTEMBER 2012 | F97: Mobile Phone | H97: 20 | I97: R | K97: 8859.25
B98: 2012-09-26 | D98: SOMERS RICHARD | E98: TRANSFER FROM SOMERS RICHARD REF #PPE2GB4C9Y RICHARD PHONE SEPTEMBER 2012 | F98: Mobile Phone | H98: 16.5 | I98: R | K98: 8875.75
B99: 2012-09-26 | D99: VERIZON WRLS MYACC 800-9220204 CA 4 | E99: CHECK CRD PURCHASE 09/24 VERIZON WRLS MYACC 800-9220204 CA 434258XXXXXX0954 002269105142871 ?MCC=4899 | F99: Mobile Phone | I99: R | J99: 136.1 | K99: 8739.65
B100: 2012-09-26 | D100: COSTCO WHSE | E100: POS PURCHASE - COSTCO WHSE #07 LEHI UT 8672 00462270668036215 | F100: Reimbursable | I100: R | J100: 64.3 | K100: =K99+H100-J100 -> 8675.35
B101: 2012-09-26 | D101: Wal Mart Super AMERICAN FORKUT | E101: POS PURCHASE - Wal Mart Super AMERICAN FORKUT 8672 00000227091530633 | F101: Reimbursable | I101: R | J101: 134 | K101: 8541.35
B102: 2012-09-27 | D102: COTTON BABIES INC. 888-332-2243 MO 4 | E102: CHECK CRD PURCHASE 09/25 COTTON BABIES INC. 888-332-2243 MO 434258XXXXXX8672 162269435883900 ?MCC=5641 | F102: Baby Supplies | I102: R | J102: 73.5 | K102: 8467.85
B103: 2012-09-27 | D103: AMERICAN FORK DI AMERICAN FORK UT 4 | E103: CHECK CRD PURCHASE 09/25 AMERICAN FORK DI AMERICAN FORK UT 434258XXXXXX8672 282269810998425 ?MCC=8398 | F103: Clothing | I103: R | J103: 75.1 | K103: 8392.75
B104: 2012-09-27 | E104: ONLINE TRANSFER REF #IBEXJS2PTS FROM SAVINGS VIA MOBILE | F104: Savings | H104: 1000 | I104: R | K104: 9392.75
B105: 2012-10-01 | D105: BARNES & NOBLE #26 OREM UT 4 | E105: CHECK CRD PURCHASE 09/27 BARNES & NOBLE #26 OREM UT 434258XXXXXX8672 282271743818324 ?MCC=5942 | F105: Baby Supplies | I105: R | J105: 15 | K105: 9377.75
B106: 2012-10-01 | E106: CHECK CRD PUR RTRN 09/28 FAMOUS FOOTWEAR #1 AMERICAN FORK UT 434258XXXXXX0954 622274550039706 ?MCC=5661 | F106: Clothing | H106: 22.4 | I106: R | K106: 9400.15
B107: 2012-10-01 | D107: KOHL'S #0777 AMERICAN FORK UT 4 | E107: CHECK CRD PURCHASE 09/28 KOHL'S #0777 AMERICAN FORK UT 434258XXXXXX0954 282273080532557 ?MCC=5311 | F107: Clothing | I107: R | J107: 73.9 | K107: 9326.25
B108: 2012-10-01 | D108: UTOBSTR&GYN8013577 PROVO UT 4 | E108: CHECK CRD PURCHASE 09/27 UTOBSTR&GYN8013577 PROVO UT 434258XXXXXX8672 002271758697934 ?MCC=8011 | F108: Doctor | I108: R | J108: 55 | K108: 9271.25
B109: 2012-10-01 | D109: WALGREENS 102 N LEHI UT | E109: POS PURCHASE - WALGREENS 102 N LEHI UT 8672 00302275781397933 | F109: Doctor | I109: R | J109: 58.5 | K109: 9212.75
B110: 2012-10-01 | C110: 186 | E110: CHECK # 186 (View) | F110: Fast Offering | I110: R | J110: 136.1 | K110: 9076.65
B111: 2012-10-01 | D111: Wal Mart Super AMERICAN FORKUT | E111: POS PURCHASE - Wal Mart Super AMERICAN FORKUT 0954 00000227379245721 | F111: Home Supplies | I111: R | J111: 32.3 | K111: 9044.35
B112: 2012-10-01 | E112: Somers Haley BILL PMT 092812 BILL PMT Somers Haley | F112: Mobile Phone | H112: 36.5 | I112: R | K112: 9080.85
B113: 2012-10-01 | E113: RECURRING TRANSFER REF #OPE2GC8N85 TO SAVINGS XXXXXX8564 | F113: Savings | I113: R | J113: 146.7 | K113: 8934.15
B114: 2012-10-01 | C114: 186 | E114: CHECK # 186 (View) | F114: Tithing | I114: R | J114: 131 | K114: 8803.15
B115: 2012-10-02 | D115: KOHL'S | E115: POS PURCHASE - KOHL'S #0777 63 AMERICAN FORKUT 8672 00462276671980466 | F115: Clothing | I115: R | J115: 9.6 | K115: 8793.55
B116: 2012-10-03 | E116: Employeer | F116: Austin's Net Income | H116: 400 | I116: R | K116: 9193.55
B117: 2012-10-03 | D117: TARGET T1814 AMERICAN FORKUT | E117: POS PURCHASE - TARGET T1814 AMERICAN FORKUT 0954 00000000000087946 | F117: Baby Supplies | I117: R | J117: 45.6 | K117: 9147.95
B118: 2012-10-03 | D118: COSTCO GAS | E118: POS PURCHASE - COSTCO GAS #073 LEHI UT 0954 00582277044703490 | F118: Gas & Fuel | I118: R | J118: 7.3 | K118: 9140.65
B119: 2012-10-09 | D119: U-SWIRL FROZEN YOG AMERICAN FORK UT 4 | E119: CHECK CRD PURCHASE 10/06 U-SWIRL FROZEN YOG AMERICAN FORK UT 434258XXXXXX8672 282281049185504 ?MCC=5814 | F119: Misc | I119: R | J119: 35 | K119: 9105.65
B120: 2012-10-09 | D120: SLC INTERNATIONAL SALT LAKE CIT UT 4 | E120: CHECK CRD PURCHASE 10/06 SLC INTERNATIONAL SALT LAKE CIT UT 434258XXXXXX0954 282280683644363 ?MCC=7523 | F120: Reimbursable | I120: R | J120: 128.3 | K120: 8977.35
B121: 2012-10-10 | D121: 7-ELEVEN PROVO UT | E121: POS PURCHASE - 7-ELEVEN PROVO UT 0954 00302284814739845 | F121: Gas & Fuel | I121: R | J121: 65.3 | K121: 8912.05
B122: 2012-10-11 | E122: DEPOSIT MADE IN A BRANCH/STORE #587852691 (View Details) | F122: Other Income | H122: 208 | I122: R | K122: 9120.05
B123: 2012-10-11 | E123: DEPOSIT MADE IN A BRANCH/STORE #587852691 (View Details) | F123: Reimbursable | H123: 217.67 | I123: R | K123: 9337.72
B124: 2012-10-12 | D124: CAPSIM MANAGEMENT 312-477-7200 IL 4 | E124: CHECK CRD PURCHASE 10/11 CAPSIM MANAGEMENT 312-477-7200 IL 434258XXXXXX0954 282285069613586 ?MCC=7399 | F124: Books & Supplies | I124: R | J124: 78.9 | K124: 9258.82
B125: 2012-10-15 | E125: INTEREST PAYMENT | F125: Interest Income | H125: 0.01 | I125: R | K125: 9258.83
B126: 2012-10-15 | D126: MARKETPLACE CAFE PROVO UT 4 | E126: CHECK CRD PURCHASE 10/11 MARKETPLACE CAFE PROVO UT 434258XXXXXX0954 162285623560936 ?MCC=5814 | F126: Other Meals | I126: R | J126: 92.6 | K126: 9166.23
B127: 2012-10-15 | D127: CAFE ZUPAS AMERICA AMERICAN FORK UT 4 | E127: CHECK CRD PURCHASE 10/11 CAFE ZUPAS AMERICA AMERICAN FORK UT 434258XXXXXX8672 082285662431445 ?MCC=5814 | F127: Other Meals | I127: R | J127: 135.5 | K127: 9030.73
B128: 2012-10-15 | D128: UTAH VALLEY CAFETE PROVO UT 4 | E128: CHECK CRD PURCHASE 10/12 UTAH VALLEY CAFETE PROVO UT 434258XXXXXX0954 082286628881300 ?MCC=5812 | F128: Other Meals | I128: R | J128: 126.2 | K128: 8904.53
B129: 2012-10-15 | D129: UTAH VALLEY CAFETE PROVO UT 4 | E129: CHECK CRD PURCHASE 10/13 UTAH VALLEY CAFETE PROVO UT 434258XXXXXX0954 162288006587458 ?MCC=5812 | F129: Other Meals | I129: R | J129: 38.7 | K129: 8865.83
B130: 2012-10-18 | E130: Employeer | F130: Austin's Net Income | H130: 350 | I130: R | K130: 9215.83
B131: 2012-10-18 | D131: Wal Mart Super AMERICAN FORKUT | E131: POS PURCHASE - Wal Mart Super AMERICAN FORKUT 0954 00000101858659179 | F131: Baby Supplies | I131: R | J131: 133.6 | K131: 9082.23
B132: 2012-10-18 | D132: BYU BOOKSTORE PROVO UT 4 | E132: CHECK CRD PURCHASE 10/16 BYU BOOKSTORE PROVO UT 434258XXXXXX0954 162290650083493 ?MCC=8220 | F132: Books & Supplies | I132: R | J132: 64.4 | K132: =K131+H132-J132 -> 9017.83
B133: 2012-10-18 | D133: BYU STUDENT HEA PROVO UT | E133: POS PURCHASE - BYU STUDENT HEA PROVO UT 8672 00462292665026138 | F133: Doctor | I133: R | J133: 10.7 | K133: 9007.13
B134: 2012-10-18 | E134: BYU Other Pmt Other 121016 XXXXX0137 Austin Somers | F134: Misc | I134: R | J134: 86.3 | K134: 8920.83
B135: 2012-10-19 | E135: BYU Other Pmt Other 121017 XXXXX9019 Austin Somers | F135: Misc | I135: R | J135: 147.1 | K135: 8773.73
B136: 2012-10-19 | E136: ONLINE TRANSFER REF #IBE5CKQ8M2 FROM SAVINGS VIA MOBILE | F136: Savings | H136: 1000 | I136: R | K136: 9773.73
B137: 2012-10-22 | D137: TARGET T1814 AMERICAN FORKUT | E137: POS PURCHASE - TARGET T1814 AMERICAN FORKUT 8672 00000000000841852 | F137: Baby Supplies | I137: R | J137: 78.9 | K137: 9694.83
B138: 2012-10-22 | E138: BYU Health Pmt Health 121018 XXXXX6516 Austin Somers | F138: Doctor | I138: R | J138: 23.7 | K138: 9671.13
B139: 2012-10-22 | D139: COSTCO GAS | E139: POS PURCHASE - COSTCO GAS #073 LEHI UT 8672 00302294829840208 | F139: Gas & Fuel | I139: R | J139: 106.6 | K139: 9564.53
B140: 2012-10-22 | D140: COSTCO GAS | E140: POS PURCHASE - COSTCO GAS #073 LEHI UT 8672 00462296806392802 | F140: Gas & Fuel | I140: R | J140: 77.7 | K140: 9486.83
B141: 2012-10-22 | D141: WAL MART 2511 AMERICAN FOR UT | E141: POS PURCHASE - WAL MART 2511 AMERICAN FOR UT 8672 00000229625114435 | F141: Groceries | I141: R | J141: 129.6 | K141: 9357.23
B142: 2012-10-22 | D142: Amazon Digital Svc 866-216-1072 WA 4 | E142: CHECK CRD PURCHASE 10/20 Amazon Digital Svc 866-216-1072 WA 434258XXXXXX0954 282294643786569 ?MCC=5735 | F142: Misc | I142: R | J142: 137.2 | K142: 9220.03
B143: 2012-10-22 | D143: GREASE MONKEY AMERICAN FORKUT | E143: POS PURCHASE - GREASE MONKEY AMERICAN FORKUT 8672 00000294001357100 | F143: Service & Parts | I143: R | J143: 10.9 | K143: 9209.13
B144: 2012-10-23 | D144: WALGREENS #9681 LEHI UT 4 | E144: CHECK CRD PURCHASE 10/22 WALGREENS #9681 LEHI UT 434258XXXXXX8672 302296812296394 ?MCC=5912 | F144: Doctor | I144: R | J144: 144.7 | K144: 9064.43
B145: 2012-10-23 | E145: BYU Health Plan Insurance 121019 XXXXX2459 Austin Somers | F145: Health Insurance | I145: R | J145: 37.6 | K145: 9026.83
B146: 2012-10-24 | D146: BYU BOOKSTORE PROVO UT 4 | E146: CHECK CRD PURCHASE 10/22 BYU BOOKSTORE PROVO UT 434258XXXXXX0954 002296600821247 ?MCC=8220 | F146: Books & Supplies | I146: R | J146: 82.8 | K146: 8944.03
B147: 2012-10-25 | D147: COSTA VIDA OF PROV PROVO UT 4 | E147: CHECK CRD PURCHASE 10/23 COSTA VIDA OF PROV PROVO UT 434258XXXXXX0954 082297821572369 ?MCC=5814 | F147: Other Meals | I147: R | J147: 21.9 | K147: 8922.13
B148: 2012-10-26 | D148: VERIZON WRLS MYACC 800-9220204 CA 4 | E148: CHECK CRD PURCHASE 10/24 VERIZON WRLS MYACC 800-9220204 CA 434258XXXXXX0954 002298555303161 ?MCC=4899 | F148: Mobile Phone | I148: R | J148: 78.9 | K148: 8843.23
B149: 2012-10-29 | D149: SLAB PIZZA LLC PROVO UT 4 | E149: CHECK CRD PURCHASE 10/26 SLAB PIZZA LLC PROVO UT 434258XXXXXX0954 282300850743134 ?MCC=5814 | F149: Dates | I149: R | J149: 8.6 | K149: 8834.63
B150: 2012-10-29 | D150: THECHOCOLAT8012247 OREM UT 4 | E150: CHECK CRD PURCHASE 10/26 THECHOCOLAT8012247 OREM UT 434258XXXXXX0954 162300839213540 ?MCC=5812 | F150: Dates | I150: R | J150: 28.2 | K150: 8806.43
B151: 2012-10-29 | D151: Wal Mart Super AMERICAN FORKUT | E151: POS PURCHASE - Wal Mart Super AMERICAN FORKUT 8672 00000102793077582 | F151: Groceries | I151: R | J151: 116.7 | K151: 8689.73
B152: 2012-10-29 | D152: SMITHS FOOD #4136 PROVO UT 4 | E152: CHECK CRD PURCHASE 10/26 SMITHS FOOD #4136 PROVO UT 434258XXXXXX0954 162300858490430 ?MCC=5411 | F152: Misc | I152: R | J152: 133.3 | K152: 8556.43
B153: 2012-10-29 | E153: Somers Haley BILL PMT 102612 BILL PMT Somers Haley | F153: Mobile Phone | H153: 36.6 | I153: R | K153: 8593.03
B154: 2012-10-31 | E154: RECURRING TRANSFER REF #OPE5CMWHR6 TO SAVINGS XXXXXX8564 | F154: Savings | I154: R | J154: 99.3 | K154: 8493.73
B155: 2012-11-01 | D155: Slate Canyon Sto | E155: BILL PAY Slate Canyon Sto ON-LINE xxxt 0018 ON 10-26 | F155: Storage Unit | I155: R | J155: 113 | K155: 8380.73
B156: 2012-11-02 | E156: Employeer | F156: Austin's Net Income | H156: 560 | I156: R | K156: 8940.73
B157: 2012-11-02 | D157: MOUNTAIN WEST BURR PROVO UT 4 | E157: CHECK CRD PURCHASE 11/04 MOUNTAIN WEST BURR PROVO UT 434258XXXXXX0954 162308844631891 ?MCC=5812 | F157: Dates | I157: R | J157: 103.6 | K157: 8837.13
B158: 2012-11-02 | D158: CHEVRON 00204058 PROVO UT 4 | E158: CHECK CRD PURCHASE 11/01 CHEVRON 00204058 PROVO UT 434258XXXXXX0954 382306720543798 ?MCC=5542 | F158: Gas & Fuel | I158: R | J158: 63.1 | K158: 8774.03
B159: 2012-11-02 | D159: Wal Mart Super AMERICAN FORKUT | E159: POS PURCHASE - Wal Mart Super AMERICAN FORKUT 8672 00000110238402327 | F159: Groceries | I159: R | J159: 41.5 | K159: 8732.53
B160: 2012-11-05 | E160: BYU Health Pmt Health 121101 XXXXX1879 Austin Somers | F160: Doctor | I160: R | J160: 10.6 | K160: 8721.93
B161: 2012-11-05 | C161: 187 | E161: CHECK # 187 (View) | F161: Fast Offering | I161: R | J161: 131.4 | K161: 8590.53
B162: 2012-11-05 | D162: Wal Mart Super AMERICAN FORKUT | E162: POS PURCHASE - Wal Mart Super AMERICAN FORKUT 0954 00000110550023756 | F162: Groceries | I162: R | J162: 146.1 | K162: 8444.43
B163: 2012-11-05 | C163: 187 | E163: CHECK # 187 (View) | F163: Tithing | I163: R | J163: 46.8 | K163: 8397.63
B164: 2012-11-07 | D164: WALGREENS 102 N LEHI UT | E164: POS PURCHASE - WALGREENS 102 N LEHI UT 8672 00582313048033487 | F164: Doctor | I164: R | J164: 75.4 | K164: =K163+H164-J164 -> 8322.23
B165: 2012-11-13 | D165: NORDSTROM 071 1 SANDY UT | E165: POS PURCHASE - NORDSTROM 071 1 SANDY UT 0954 00302315622171373 | F165: Baby Supplies | G165: Diaper bag | I165: R | J165: 44.3 | K165: 8277.93
B166: 2012-11-13 | D166: 7-ELEVEN PROVO UT | E166: POS PURCHASE - 7-ELEVEN PROVO UT 0954 00462317807446200 | F166: Gas & Fuel | I166: R | J166: 90.7 | K166: 8187.23
B167: 2012-11-13 | D167: COSTCO WHSE | E167: POS PURCHASE - COSTCO WHSE #07 LEHI UT 8672 00382318074545371 | F167: Groceries | I167: R | J167: 123.6 | K167: 8063.63
B168: 2012-11-13 | D168: COSTCO WHSE | E168: POS PURCHASE - COSTCO WHSE #07 LEHI UT 8672 00382318074545371 | F168: Misc | G168: Stamps | I168: R | J168: 80.1 | K168: 7983.53
B169: 2012-11-13 | E169: ONLINE TRANSFER REF #IBEC5V2YN3 FROM SAVINGS VIA MOBILE | F169: Savings | H169: 500 | I169: R | K169: 8483.53
B170: 2012-11-13 | E170: ONLINE TRANSFER REF #IBEC5V7L8T FROM SAVINGS EVERLIES HOSPITAL BILL TRANSFER | F170: Savings | H170: 400 | I170: R | K170: 8883.53
B171: 2012-11-14 | D171: IHC CENTRAL AR SVC 801-5762760 UT 4 | E171: CHECK CRD PURCHASE 11/13 IHC CENTRAL AR SVC 801-5762760 UT 434258XXXXXX8672 002318809947778 ?MCC=8062 | F171: Doctor | G171: Everlie's hospital bill | I171: R | J171: 44 | K171: 8839.53
B172: 2012-11-15 | E172: INTEREST PAYMENT | F172: Interest Income | H172: 0.01 | I172: R | K172: 8839.54
B173: 2012-11-19 | E173: Employeer | F173: Austin's Net Income | H173: 700 | I173: C | K173: 9539.54
B174: 2012-11-19 | D174: UWMC ONLINE BILL P 206-5981950 WA 4 | E174: CHECK CRD PURCHASE 11/16 UWMC ONLINE BILL P 206-5981950 WA 434258XXXXXX8672 282317761636126 ?MCC=8099 | F174: Doctor | G174: Bill from doctor in WA | I174: C | J174: 112.4 | K174: 9427.14
B175: 2012-11-19 | D175: WAL MART 2511 AMERICAN FOR UT | E175: POS PURCHASE - WAL MART 2511 AMERICAN FOR UT 8672 00000000253209057 | F175: Misc | G175: Just a bunch of stuff | I175: C | J175: 95.9 | K175: 9331.24
B176: 2012-11-20 | D176: WAL MART 2511 AMERICAN FOR UT | E176: POS PURCHASE - WAL MART 2511 AMERICAN FOR UT 0954 00000000551115353 | F176: Groceries | I176: C | J176: 100.1 | K176: 9231.14
B177: 2012-11-20 | D177: THE HOME DEPOT AMERICAN FORKUT | E177: POS PURCHASE - THE HOME DEPOT AMERICAN FORKUT 0954 00382325773443668 | F177: Misc | G177: Plug for Jay's stove | I177: C | J177: 34 | K177: 9197.14
B178: 2012-11-21 | D178: JOANN STORES, I AMERICAN FORKUT | E178: POS PURCHASE - JOANN STORES, I AMERICAN FORKUT 8672 00302326613306337 | F178: Reimbursable | G178: Stuff for nursing shawl | I178: C | J178: 37.7 | K178: 9159.44
B179: 2012-11-21 | D179: AMERICAN FORK D AMERICAN FORKUT | E179: POS PURCHASE - AMERICAN FORK D AMERICAN FORKUT 8672 00000000353643706 | F179: Reimbursable | G179: Bought stuff for Becca | I179: C | J179: 15.7 | K179: 9143.74
B180: 2012-11-26 | C180: 188 | E180: CHECK # 188 (View) | F180: Fast Offering | I180: C | J180: 60.7 | K180: 9083.04
B181: 2012-11-26 | D181: COSTCO GAS | E181: POS PURCHASE - COSTCO GAS #073 LEHI UT 0954 00462329836741646 | F181: Gas & Fuel | J181: 123.9 | K181: 8959.14
B182: 2012-11-26 | D182: SOMERS RICHARD | E182: TRANSFER FROM SOMERS RICHARD REF #PPETN79FMV PAM IPHONE NOVEMBER 2012 | F182: Mobile Phone | H182: 76.6 | I182: C | K182: 9035.74
B183: 2012-11-26 | D183: SOMERS RICHARD | E183: TRANSFER FROM SOMERS RICHARD REF #PPEXK8TKCB RICHARD PHONE NOVEMBER 2012 | F183: Mobile Phone | H183: 36.6 | I183: C | K183: 9072.34
B184: 2012-11-26 | D184: VERIZON WRLS MYACC 800-9220204 CA 4 | E184: CHECK CRD PURCHASE 11/23 VERIZON WRLS MYACC 800-9220204 CA 434258XXXXXX0954 002328732798926 ?MCC=4899 | F184: Mobile Phone | I184: C | J184: 200 | K184: 8872.34
B185: 2012-11-26 | E185: ONLINE TRANSFER REF #IBEXK8R6LH FROM SAVINGS VIA MOBILE | F185: Savings | H185: 500 | I185: C | K185: 9372.34
B186: 2012-11-26 | D186: COSTCO WHSE | E186: POS PURCHASE - COSTCO WHSE #07 LEHI UT 8672 00382329677492119 | F186: Service & Parts | G186: New tires for the Corolla | I186: C | J186: 52.8 | K186: 9319.54
B187: 2012-11-26 | C187: 188 | E187: CHECK # 188 (View) | F187: Tithing | I187: C | J187: 94.4 | K187: 9225.14
B188: 2012-11-27 | D188: COTTON BABIES INC. 888-332-2243 MO 4 | E188: CHECK CRD PURCHASE 11/25 COTTON BABIES INC. 888-332-2243 MO 434258XXXXXX0954 082331021355002 ?MCC=5641 | F188: Baby Supplies | G188: Diapers | I188: C | J188: 46.6 | K188: 9178.54
B189: 2012-11-27 | E189: DEPOSIT MADE IN A BRANCH/STORE #389680244 (View Details) | F189: Other Income | G189: Check from Jane and extra cash | H189: 45 | I189: C | K189: 9223.54
B190: 2012-11-27 | D190: SLATE CANYON STO | E190: BILL PAY SLATE CANYON STO ON-LINE xxxt 0018 ON 11-27 | F190: Storage Unit | I190: C | J190: 19.6 | K190: 9203.94
B191: 2012-11-28 | D191: WAL MART 2511 AMERICAN FOR UT | E191: POS PURCHASE - WAL MART 2511 AMERICAN FOR UT 8672 00000000244748888 | F191: Baby Supplies | I191: C | J191: 92.4 | K191: 9111.54
B192: 2012-11-28 | D192: BYU STUDENT HEALTH PROVO UT 4 | E192: CHECK CRD PURCHASE 11/26 BYU STUDENT HEALTH PROVO UT 434258XXXXXX8672 082331844566871 ?MCC=5912 | F192: Doctor | G192: Perscriptions | I192: C | J192: 30.7 | K192: 9080.84
B193: 2012-11-28 | D193: WAL MART 2511 AMERICAN FOR UT | E193: POS PURCHASE - WAL MART 2511 AMERICAN FOR UT 8672 00000000244748888 | F193: Gifts for Others | G193: Gifts for Jen Cox | I193: C | J193: 103.5 | K193: 8977.34
B194: 2012-11-28 | E194: Somers Haley BILL PMT 112712 BILL PMT Somers Haley | F194: Mobile Phone | H194: 36.6 | I194: C | K194: 9013.94
B195: 2012-11-28 | D195: WAL MART 2511 AMERICAN FOR UT | E195: POS PURCHASE - WAL MART 2511 AMERICAN FOR UT 8672 00000000244748888 | F195: Groceries | I195: C | J195: 118.3 | K195: 8895.64
B196: 2012-11-28 | D196: COSTCO WHSE 0733 LEHI UT | E196: POS PURCHASE - COSTCO WHSE 0733 LEHI UT 8672 00302333719441364 | F196: Groceries | I196: C | J196: 30.7 | K196: =K195+H196-J196 -> 8864.94
A197: x | B197: 2012-11-30 | E197: RECURRING TRANSFER REF #OPEC5Z36WM TO SAVINGS XXXXXX8564 | F197: Savings | I197: C | J197: 84.9 | K197: 8780.04

Sheet Savings
A1: Savings
A2: Column1 | B2: Date | C2: Check # | D2: Payee | E2: Memo | F2: Category | G2: Notes | H2: Deposit | I2: Clr | J2: Payment | K2: Balance
B3: 2012-08-12 | E3: Beginning Balance | I3: R | K3: 17946.1
B4: 2012-08-14 | E4: INTEREST PAYMENT | F4: Interest Income | H4: 1 | I4: R | K4: =K3+H4-J4 -> 17947.1
B5: 2012-08-17 | E5: ONLINE TRANSFER REF #IBE2FZDXTV TO COMPLETE ADVANTAGE(RM) VIA MOBILE | F5: Checking | I5: R | J5: 2500 | K5: 15447.1
B6: 2012-08-31 | E6: RECURRING TRANSFER REF #OPEQQGLZRM FROM COMPLETE ADVANTAGE(RM) XXXXXX9464 | F6: Checking | H6: 100 | I6: R | K6: 15547.1
B7: 2012-09-17 | E7: ONLINE TRANSFER REF #IBE88CH5BV TO VISA BECCAS DRESS AND HOSPITAL DEPOSIT | F7: Checking | I7: R | J7: 559.21 | K7: 14987.89
B8: 2012-09-17 | E8: INTEREST PAYMENT | F8: Interest Income | H8: 2 | I8: R | K8: 14989.89
B9: 2012-09-27 | E9: ONLINE TRANSFER REF #IBEXJS2PTS TO COMPLETE ADVANTAGE(RM) VIA MOBILE | F9: Checking | I9: R | J9: 1000 | K9: 13989.89
B10: 2012-10-01 | E10: RECURRING TRANSFER REF #OPE2GC8N85 FROM COMPLETE ADVANTAGE(RM) XXXXXX9464 | F10: Checking | H10: 100 | I10: R | K10: 14089.89
B11: 2012-10-15 | E11: INTEREST PAYMENT | F11: Interest Income | H11: 3 | I11: C | K11: 14092.89
B12: 2012-10-19 | E12: ONLINE TRANSFER REF #IBE5CKQ8M2 TO COMPLETE ADVANTAGE(RM) VIA MOBILE | F12: Checking | I12: C | J12: 1000 | K12: 13092.89
B13: 2012-10-31 | E13: RECURRING TRANSFER REF #OPE5CMWHR6 FROM COMPLETE ADVANTAGE(RM) XXXXXX9464 | F13: Checking | H13: 100 | I13: C | K13: 13192.89
B14: 2012-11-13 | E14: ONLINE TRANSFER REF #IBEC5V7L8T TO COMPLETE ADVANTAGE(RM) EVERLIES HOSPITAL BILL TRANSFER | F14: Checking | I14: C | J14: 400 | K14: 12792.89
B15: 2012-11-15 | E15: INTEREST PAYMENT | F15: Interest Income | H15: 4 | I15: C | K15: 12796.89
B16: 2012-11-26 | E16: ONLINE TRANSFER REF #IBEXK8R6LH TO COMPLETE ADVANTAGE(RM) VIA MOBILE | F16: Checking | I16: C | J16: 500 | K16: =K15+H16-J16 -> 12296.89
A17: x | B17: 2012-11-30 | E17: RECURRING TRANSFER REF #OPEC5Z36WM FROM COMPLETE ADVANTAGE(RM) XXXXXX9464 | F17: Checking | H17: 100 | I17: C | K17: =K16+H17-J17 -> 12396.89

Sheet Austin's Credit
A1: Austin's Credit
A2: New | B2: Date | C2: Check # | D2: Payee | E2: Memo | F2: Category | G2: Notes | H2: Payment | I2: Clr | J2: Charge | K2: Balance
B3: 2012-08-12 | E3: Beginning Balance | K3: 0
B4: 2012-08-12 | F4: Other Income | G4: Redemption of points | J4: -0.35 | K4: =K3+H4-J4 -> 0.35

Sheet Rochelle's Credit
A1: Rochelle's Credit
A2: New | B2: Date | C2: Check # | D2: Payee | E2: Memo | F2: Category | G2: Notes | H2: Payment | I2: Clr | J2: Charge | K2: Balance
B3: 2012-08-12 | E3: Beginning Balance | K3: 0

Sheet Pivot Table
A1: Type | B1: Expense
A3: Sum of Amount | B3: Column Labels
B4: 2012 | F4: Grand Total
A5: Row Labels | B5: Aug | C5: Sep | D5: Oct | E5: Nov
A6: Gas & Fuel | B6: 434.1 | C6: 432.6 | D6: 256.9 | E6: 277.7 | F6: 1401.3
A7: Groceries | B7: 309.6 | C7: 0 | D7: 246.3 | E7: 560.3 | F7: 1116.2
A8: Misc | B8: 205.5 | C8: 132.7 | D8: 538.9 | E8: 210 | F8: 1087.1
A9: Doctor | B9: 0 | C9: 137.9 | D9: 292.6 | E9: 273.1 | F9: 703.6
A10: Baby Supplies | B10: 0 | C10: 171.6 | D10: 273.1 | E10: 183.3 | F10: 628
A11: Other Meals | B11: 112.4 | C11: 54.5 | D11: 414.9 | E11: 0 | F11: 581.8
A12: Clothing | B12: 164.3 | C12: 302.4 | D12: 61.1 | E12: 0 | F12: 527.8
A13: Books & Supplies | B13: 149.2 | C13: 127.9 | D13: 226.1 | E13: 0 | F13: 503.2
A14: Dates | B14: 0 | C14: 330.9 | D14: 36.8 | E14: 103.6 | F14: 471.3
A15: Fast Offering | B15: 132.8 | C15: 0 | D15: 136.1 | E15: 192.1 | F15: 461
A16: Tithing | B16: 99.6 | C16: 0 | D16: 131 | E16: 141.2 | F16: 371.8
A17: Storage Unit | B17: 23.4 | C17: 90 | D17: 0 | E17: 132.6 | F17: 246
A18: Service & Parts | B18: 146.8 | C18: 0 | D18: 10.9 | E18: 52.8 | F18: 210.5
A19: Public Transportation | B19: 129.6 | C19: 0 | D19: 0 | E19: 0 | F19: 129.6
A20: Seattle Fun Fund | B20: 119.3 | C20: 0 | D20: 0 | E20: 0 | F20: 119.3
A21: Parking | B21: 111.6 | C21: 0 | D21: 0 | E21: 0 | F21: 111.6
A22: Gifts for Others | B22: 0 | C22: 0 | D22: 0 | E22: 103.5 | F22: 103.5
A23: Toiletries | B23: 0 | C23: 100.6 | D23: 0 | E23: 0 | F23: 100.6
A24: Auto Insurance | B24: 80.3 | C24: 0 | D24: 0 | E24: 0 | F24: 80.3
A25: Health Insurance | B25: 0 | C25: 40.3 | D25: 37.6 | E25: 0 | F25: 77.9
A26: Tuition | B26: 66.2 | C26: 0 | D26: 0 | E26: 0 | F26: 66.2
A27: Home Supplies | B27: 21.3 | C27: 0 | D27: 32.3 | E27: 0 | F27: 53.6
A28: Mobile Phone | B28: -202.1 | C28: 23.1 | D28: 5.8 | E28: 50.2 | F28: -123
A29: Grand Total | B29: 2103.9 | C29: 1944.5 | D29: 2700.4 | E29: 2280.4 | F29: 9029.2

Sheet Data
A1: Date | B1: Check # | C1: Payee | D1: Memo | E1: SubCategory | F1: Notes | G1: Deposit | H1: Clr | I1: Payment | J1: Type
A2: 2012-08-12 | D2: Beginning Balance | H2: R
A3: 2012-08-13 | C3: AMERICAN APPAREL-0 SEATTLE WA 4 | D3: CHECK CRD PURCHASE 08/11 AMERICAN APPAREL-0 SEATTLE WA 434258XXXXXX0954 282224722041255 ?MCC=5699 | E3: Clothing | H3: R | I3: 32.6 | J3: Expense
A4: 2012-08-13 | C4: USA GASOLINE 62 KENNEWICK WA | D4: POS PURCHASE - USA GASOLINE 62 KENNEWICK WA 0954 00302226609599213 | E4: Gas & Fuel | H4: R | I4: 16.1 | J4: Expense
A5: 2012-08-13 | C5: FRED-MEYER #0608 SEATTLE WA 4 | D5: CHECK CRD PURCHASE 08/11 FRED-MEYER #0608 SEATTLE WA 434258XXXXXX0954 082224790526316 ?MCC=5411 | E5: Groceries | H5: R | I5: 28.1 | J5: Expense
A6: 2012-08-13 | C6: SEATTLE 684-PARK SEATTLE WA 4 | D6: CHECK CRD PURCHASE 08/11 SEATTLE 684-PARK SEATTLE WA 434258XXXXXX0954 002224705532286 ?MCC=9399 | E6: Parking | H6: R | I6: 111.6 | J6: Expense
A7: 2012-08-13 | C7: ORCA KCM AUTOLOAD 206-6247277 WA 4 | D7: CHECK CRD PURCHASE 08/11 ORCA KCM AUTOLOAD 206-6247277 WA 434258XXXXXX0954 282223256759004 ?MCC=9399 | E7: Public Transportation | H7: R | I7: 129.6 | J7: Expense
A8: 2012-08-13 | C8: GROUPON INC 877-788-7858 IL 4 | D8: CHECK CRD PURCHASE 08/12 GROUPON INC 877-788-7858 IL 434258XXXXXX8672 082224658005480 ?MCC=7299 | E8: Seattle Fun Fund | H8: R | I8: 119.3 | J8: Expense
A9: 2012-08-14 | D9: Employeer | E9: Austin's Net Income | G9: 114.3 | H9: R | J9: Income
A10: 2012-08-14 | C10: GREASE MONKEY AMERICAN FORKUT | D10: POS PURCHASE - GREASE MONKEY AMERICAN FORKUT 8672 00000227001753402 | E10: Auto Insurance | H10: R | I10: 80.3 | J10: Expense
A11: 2012-08-14 | C11: COSTCO GAS | D11: POS PURCHASE - COSTCO GAS #073 LEHI UT 8672 00302227732463530 | E11: Gas & Fuel | H11: R | I11: 142.5 | J11: Expense
A12: 2012-08-14 | C12: CHEVRON 00073792 BURLEY ID 4 | D12: CHECK CRD PURCHASE 08/13 CHEVRON 00073792 BURLEY ID 434258XXXXXX0954 582227036392046 ?MCC=5542 | E12: Gas & Fuel | H12: R | I12: 122 | J12: Expense
A13: 2012-08-14 | C13: MAVERIK #439 BAKR CITY OR 4 | D13: CHECK CRD PURCHASE 08/13 MAVERIK #439 BAKR CITY OR 434258XXXXXX0954 082226705567546 ?MCC=5542 | E13: Gas & Fuel | H13: R | I13: 22.5 | J13: Expense
A14: 2012-08-14 | C14: Wal Mart Super AMERICAN FORKUT | D14: POS PURCHASE - Wal Mart Super AMERICAN FORKUT 8672 00000222774510735 | E14: Groceries | H14: R | I14: 90.1 | J14: Expense
A15: 2012-08-14 | C15: TARGET T1814 AMERICAN FORKUT | D15: POS PURCHASE - TARGET T1814 AMERICAN FORKUT 8672 00000000000337700 | E15: Home Supplies | H15: R | I15: 21.3 | J15: Expense
A16: 2012-08-14 | D16: INTEREST PAYMENT | E16: Interest Income | G16: 0.02 | H16: R | J16: Income
A17: 2012-08-14 | C17: SOMERS RICHARD | D17: TRANSFER FROM SOMERS RICHARD REF #PPEJX7FSWF RICHARD PHONE JULY 2012 | E17: Mobile Phone | G17: 36.8 | H17: R | J17: Expense
A18: 2012-08-14 | C18: SOMERS RICHARD | D18: TRANSFER FROM SOMERS RICHARD REF #PPETMCW9BS PAM IPHONE JULY 2012 | E18: Mobile Phone | G18: 86.8 | H18: R | J18: Expense
A19: 2012-08-15 | C19: PERKINS FAMILY RES 208-6783501 ID 4 | D19: CHECK CRD PURCHASE 08/13 PERKINS FAMILY RES 208-6783501 ID 434258XXXXXX0954 002227031145354 ?MCC=5812 | E19: Other Meals | H19: R | I19: 12.7 | J19: Expense
A20: 2012-08-16 | C20: AMAZON MKTPLACE PM AMZN.COM/BILL WA 4 | D20: CHECK CRD PURCHASE 08/15 AMAZON MKTPLACE PM AMZN.COM/BILL WA 434258XXXXXX0954 082227839459965 ?MCC=5942 | E20: Books & Supplies | H20: R | I20: 149.2 | J20: Expense
A21: 2012-08-16 | C21: WALGREENS #9681 LEHI UT 4 | D21: CHECK CRD PURCHASE 08/15 WALGREENS #9681 LEHI UT 434258XXXXXX8672 582228638849586 ?MCC=5912 | E21: Misc | H21: R | I21: 49.6 | J21: Expense
A22: 2012-08-16 | C22: UTAH-DMV RENEWAL E 801-297-3809 UT 4 | D22: CHECK CRD PURCHASE 08/15 UTAH-DMV RENEWAL E 801-297-3809 UT 434258XXXXXX8672 282227695633625 ?MCC=9399 | E22: Service & Parts | H22: R | I22: 146.8 | J22: Expense
A23: 2012-08-17 | C23: COSTCO WHSE | D23: POS PURCHASE - COSTCO WHSE #07 LEHI UT 8672 00582230713970472 | E23: Groceries | H23: R | I23: 29.9 | J23: Expense
A24: 2012-08-17 | C24: Wal Mart Super AMERICAN FORKUT | D24: POS PURCHASE - Wal Mart Super AMERICAN FORKUT 8672 00000223093285392 | E24: Groceries | H24: R | I24: 78.9 | J24: Expense
A25: 2012-08-17 | C25: Wal Mart Super SALT LAKE CITUT | D25: POS PURCHASE - Wal Mart Super SALT LAKE CITUT 8672 00000223029795320 | E25: Groceries | H25: R | I25: 89.5 | J25: Expense
A26: 2012-08-17 | C26: Wal Mart Super SALT LAKE CITUT | D26: POS PURCHASE - Wal Mart Super SALT LAKE CITUT 8672 00000223027501630 | E26: Groceries | H26: R | I26: 92.9 | J26: Expense
A27: 2012-08-17 | D27: ONLINE TRANSFER REF #IBE2FZDXTV FROM SAVINGS VIA MOBILE | E27: Savings | G27: 2500 | H27: R
A28: 2012-08-20 | C28: FAST GAS #6 AMERICAN FORK UT 4 | D28: CHECK CRD PURCHASE 08/17 FAST GAS #6 AMERICAN FORK UT 434258XXXXXX0954 082230489762757 ?MCC=5542 | E28: Gas & Fuel | H28: R | I28: 131 | J28: Expense
A29: 2012-08-20 | C29: ARBYS 1916 0001 AMERICAN FORK UT 4 | D29: CHECK CRD PURCHASE 08/16 ARBYS 1916 0001 AMERICAN FORK UT 434258XXXXXX0954 082230100884463 ?MCC=5814 | E29: Other Meals | H29: R | I29: 87.4 | J29: Expense
A30: 2012-08-20 | C30: DENNIS SALT LAKE C SALT LAKE CIT UT 4 | D30: CHECK CRD PURCHASE 08/17 DENNIS SALT LAKE C SALT LAKE CIT UT 434258XXXXXX8672 162230826539556 ?MCC=5699 | E30: Reimbursable | H30: R | I30: 31.5
A31: 2012-08-22 | D31: BYU Tuition Pmt Tuition 120820 XXXXX8613 Austin Somers | E31: Tuition | H31: R | I31: 66.2 | J31: Expense
A32: 2012-08-24 | C32: VERIZON WRLS MYACC 800-9220204 CA 4 | D32: CHECK CRD PURCHASE 08/22 VERIZON WRLS MYACC 800-9220204 CA 434258XXXXXX0954 162235815228227 ?MCC=4899 | E32: Mobile Phone | H32: R | I32: 71 | J32: Expense
A33: 2012-08-27 | C33: KOHL'S | D33: POS PURCHASE - KOHL'S #0777 63 AMERICAN FORKUT 8672 00302238746018724 | E33: Clothing | H33: R | I33: 131.7 | J33: Expense
A34: 2012-08-27 | B34: 1900-07-03 | D34: CHECK # 185 (View) | E34: Fast Offering | H34: R | I34: 132.8 | J34: Expense
A35: 2012-08-27 | D35: DEPOSIT MADE IN A BRANCH/STORE #536288441 (View Details) | E35: Groceries | G35: 143.2 | H35: R | J35: Expense
A36: 2012-08-27 | C36: Wal Mart Super AMERICAN FORKUT | D36: POS PURCHASE - Wal Mart Super AMERICAN FORKUT 0954 00000223860741371 | E36: Groceries | H36: R | I36: 43.6 | J36: Expense
A37: 2012-08-27 | C37: COSTCO WHSE | D37: POS PURCHASE - COSTCO WHSE #07 LEHI UT 0954 00302238811356649 | E37: Groceries | H37: R | I37: 31.8 | J37: Expense
A38: 2012-08-27 | B38: 1900-07-02 | D38: CHECK # 184 * (View) | E38: Groceries | H38: R | I38: 110 | J38: Expense
A39: 2012-08-27 | C39: SOMERS RICHARD | D39: TRANSFER FROM SOMERS RICHARD REF #PPE885N8DY PAM IPHONE AUGUST 2012 | E39: Mobile Phone | G39: 76.5 | H39: R | J39: Expense
A40: 2012-08-27 | D40: Somers Haley BILL PMT 082412 BILL PMT Somers Haley | E40: Mobile Phone | G40: 36.5 | H40: R | J40: Expense
A41: 2012-08-27 | C41: SOMERS RICHARD | D41: TRANSFER FROM SOMERS RICHARD REF #PPEG28MCNK RICHARD PHONE AUGUST 2012 | E41: Mobile Phone | G41: 36.5 | H41: R | J41: Expense
A42: 2012-08-27 | D42: DEPOSIT MADE IN A BRANCH/STORE #536288441 (View Details) | E42: Reimbursable | G42: 316.8 | H42: R
A43: 2012-08-27 | B43: 1900-07-03 | D43: CHECK # 185 (View) | E43: Tithing | H43: R | I43: 99.6 | J43: Expense
A44: 2012-08-28 | B44: 1900-06-29 | D44: CHECK # 181 (View) | E44: Reimbursable | H44: R | I44: 115.9
A45: 2012-08-28 | C45: Slate Canyon Sto | D45: BILL PAY Slate Canyon Sto ON-LINE No Account Number ON 08-28 | E45: Storage Unit | H45: R | I45: 23.4 | J45: Expense
A46: 2012-08-29 | C46: BYU BOOKSTORE PROVO UT 4 | D46: CHECK CRD PURCHASE 08/27 BYU BOOKSTORE PROVO UT 434258XXXXXX0954 162240615431323 ?MCC=8220 | E46: Misc | H46: R | I46: 10 | J46: Expense
A47: 2012-08-29 | C47: MARKETPLACE CAFE PROVO UT 4 | D47: CHECK CRD PURCHASE 08/27 MARKETPLACE CAFE PROVO UT 434258XXXXXX0954 082240629268614 ?MCC=5814 | E47: Other Meals | H47: R | I47: 12.3 | J47: Expense
A48: 2012-08-30 | D48: DEPOSIT MADE IN A BRANCH/STORE #540944788 (View Details) | E48: Groceries | G48: 142 | H48: R | J48: Expense
A49: 2012-08-30 | C49: THANKSGIVING POINT LEHI UT 4 | D49: CHECK CRD PURCHASE 08/28 THANKSGIVING POINT LEHI UT 434258XXXXXX8672 282241602916114 ?MCC=8398 | E49: Misc | H49: R | I49: 58.5 | J49: Expense
A50: 2012-08-30 | D50: DEPOSIT MADE IN A BRANCH/STORE #540944788 (View Details) | E50: Other Income | G50: 55 | H50: R | J50: Income
A51: 2012-08-30 | D51: DEPOSIT MADE IN A BRANCH/STORE #540944788 (View Details) | E51: Reimbursable | G51: 470 | H51: R
A52: 2012-08-31 | D52: Employeer | E52: Austin's Net Income | G52: 500 | H52: R | J52: Income
A53: 2012-08-31 | C53: ALPINE LOCK & SAFE AMERICAN FORK UT 4 | D53: CHECK CRD PURCHASE 08/30 ALPINE LOCK & SAFE AMERICAN FORK UT 434258XXXXXX8672 002243641972285 ?MCC=7399 | E53: Misc | H53: R | I53: 87.4 | J53: Expense
A54: 2012-08-31 | C54: THANKSGIVING POINT LEHI UT 4 | D54: CHECK CRD PURCHASE 08/28 THANKSGIVING POINT LEHI UT 434258XXXXXX8672 162241670729610 ?MCC=5812 | E54: Rochelle's Money | H54: R | I54: 25.5
A55: 2012-08-31 | D55: RECURRING TRANSFER REF #OPEQQGLZRM TO SAVINGS XXXXXX8564 | E55: Savings | H55: R | I55: 24.4
A56: 2012-09-04 | D56: Employeer | E56: Austin's Net Income | G56: 500 | H56: R | J56: Income
A57: 2012-09-04 | C57: CINEMARK THEATRES PROVO UT 4 | D57: CHECK CRD PURCHASE 09/01 CINEMARK THEATRES PROVO UT 434258XXXXXX0954 002245839586042 ?MCC=7832 | E57: Dates | H57: R | I57: 139.8 | J57: Expense
A58: 2012-09-04 | C58: SLAB PIZZA LLC PROVO UT 4 | D58: CHECK CRD PURCHASE 09/01 SLAB PIZZA LLC PROVO UT 434258XXXXXX0954 282245850790640 ?MCC=5814 | E58: Dates | H58: R | I58: 92.1 | J58: Expense
A59: 2012-09-04 | C59: COSTCO GAS | D59: POS PURCHASE - COSTCO GAS #073 LEHI UT 0954 00302245043899208 | E59: Gas & Fuel | H59: R | I59: 121.5 | J59: Expense
A60: 2012-09-04 | C60: TARGET T1814 AMERICAN FORKUT | D60: POS PURCHASE - TARGET T1814 AMERICAN FORKUT 0954 00000000000232225 | E60: Misc | H60: R | I60: 24.8 | J60: Expense
A61: 2012-09-04 | C61: THE HOME DEPOT AMERICAN FORKUT | D61: POS PURCHASE - THE HOME DEPOT AMERICAN FORKUT 8672 00000090139983001 | E61: Reimbursable | H61: R | I61: 76.9
A62: 2012-09-04 | C62: THE HOME DEPOT AMERICAN FORKUT | D62: POS PURCHASE - THE HOME DEPOT AMERICAN FORKUT 0954 00302247630630109 | E62: Reimbursable | H62: R | I62: 43.3
A63: 2012-09-04 | C63: COSTCO WHSE | D63: POS PURCHASE - COSTCO WHSE #07 LEHI UT 8672 00302248860791025 | E63: Reimbursable | H63: R | I63: 93.1
A64: 2012-09-05 | D64: Employeer | E64: Austin's Net Income | G64: 255 | H64: R | J64: Income
A65: 2012-09-06 | C65: COSTCO GAS | D65: POS PURCHASE - COSTCO GAS #073 LEHI UT 8672 00582250837575400 | E65: Gas & Fuel | H65: R | I65: 129.7 | J65: Expense
A66: 2012-09-06 | D66: BYU Health Plan Insurance 120904 XXXXX0027 Austin Somers | E66: Health Insurance | H66: R | I66: 40.3 | J66: Expense
A67: 2012-09-06 | D67: BYU Other Pmt Other 120904 XXXXX0001 Austin Somers | E67: Misc | H67: R | I67: 107.9 | J67: Expense
A68: 2012-09-07 | C68: BYU BOOKSTORE PROVO UT 4 | D68: CHECK CRD PURCHASE 09/05 BYU BOOKSTORE PROVO UT 434258XXXXXX0954 162250029573136 ?MCC=8220 | E68: Clothing | H68: R | I68: 79.2 | J68: Expense
A69: 2012-09-07 | C69: ARBYS 1916 0001 AMERICAN FORK UT 4 | D69: CHECK CRD PURCHASE 09/04 ARBYS 1916 0001 AMERICAN FORK UT 434258XXXXXX8672 162248745165823 ?MCC=5814 | E69: Other Meals | H69: R | I69: 54.5 | J69: Expense
A70: 2012-09-10 | C70: APL*APPLE ITUNES S 866-712-7753 CA 4 | D70: CHECK CRD PURCHASE 09/07 APL*APPLE ITUNES S 866-712-7753 CA 434258XXXXXX0954 082249203757115 ?MCC=5735 | E70: Books & Supplies | H70: R | I70: 39.6 | J70: Expense
A71: 2012-09-10 | C71: JCPENNEY 0231 SANDY UT 4 | D71: CHECK CRD PURCHASE 09/07 JCPENNEY 0231 SANDY UT 434258XXXXXX0954 002252071459184 ?MCC=5311 | E71: Clothing | H71: R | I71: 22.6 | J71: Expense
A72: 2012-09-10 | C72: IKEA DRAPER DRAPER UT 4 | D72: CHECK CRD PURCHASE 09/07 IKEA DRAPER DRAPER UT 434258XXXXXX0954 002252083281668 ?MCC=5814 | E72: Dates | H72: R | I72: 99 | J72: Expense
A73: 2012-09-10 | C73: Wal Mart Super AMERICAN FORKUT | D73: POS PURCHASE - Wal Mart Super AMERICAN FORKUT 0954 00000225284413248 | E73: Toiletries | H73: R | I73: 100.6 | J73: Expense
A74: 2012-09-12 | C74: BYU BOOKSTORE PROVO UT 4 | D74: CHECK CRD PURCHASE 09/10 BYU BOOKSTORE PROVO UT 434258XXXXXX0954 162254827327638 ?MCC=8220 | E74: Books & Supplies | H74: R | I74: 88.3 | J74: Expense
A75: 2012-09-13 | D75: CHECK CRD PUR RTRN 09/12 JCPENNEY 2770 PROVO UT 434258XXXXXX0954 612257553414691 ?MCC=5311 | E75: Clothing | G75: 20 | H75: R | J75: Expense
A76: 2012-09-13 | C76: Wal Mart Super AMERICAN FORKUT | D76: POS PURCHASE - Wal Mart Super AMERICAN FORKUT 8672 00000225702596708 | E76: Reimbursable | H76: R | I76: 18.7
A77: 2012-09-14 | C77: FAST GAS #6 AMERICAN FORK UT 4 | D77: CHECK CRD PURCHASE 09/12 FAST GAS #6 AMERICAN FORK UT 434258XXXXXX0954 002256483177053 ?MCC=5542 | E77: Gas & Fuel | H77: R | I77: 49.1 | J77: Expense
A78: 2012-09-17 | C78: UTOBSTR&GYN8013577 PROVO UT 4 | D78: CHECK CRD PURCHASE 09/13 UTOBSTR&GYN8013577 PROVO UT 434258XXXXXX8672 002257771823200 ?MCC=8011 | E78: Doctor | H78: R | I78: 11.9 | J78: Expense
A79: 2012-09-17 | D79: INTEREST PAYMENT | E79: Interest Income | G79: 0.02 | H79: R | J79: Income
A80: 2012-09-17 | C80: THE HOME DEPOT 441 AMERICAN FORK UT 4 | D80: CHECK CRD PURCHASE 09/15 THE HOME DEPOT 441 AMERICAN FORK UT 434258XXXXXX0954 162259813624444 ?MCC=5200 | E80: Reimbursable | H80: R | I80: 79.3
A81: 2012-09-17 | D81: POS PURCHASE RETURN - THE HOME DEPOT THE HOME DAMERICAN FORKUT 0954 00582259798857590 | E81: Reimbursable | G81: 140.8 | H81: R
A82: 2012-09-18 | D82: Employeer | E82: Austin's Net Income | G82: 700 | H82: R | J82: Income
A83: 2012-09-18 | C83: THE MENS WEARHO OREM UT | D83: POS PURCHASE - THE MENS WEARHO OREM UT 0954 00382262852058715 | E83: Clothing | H83: R | I83: 38.3 | J83: Expense
A84: 2012-09-18 | D84: DEPOSIT MADE IN A BRANCH/STORE #567731018 (View Details) | E84: Reimbursable | G84: 559.7 | H84: R
A85: 2012-09-19 | C85: Wal Mart Super AMERICAN FORKUT | D85: POS PURCHASE - Wal Mart Super AMERICAN FORKUT 8672 00000226319742607 | E85: Reimbursable | H85: R | I85: 116.4
A86: 2012-09-20 | C86: WALGREENS 102 N LEHI UT | D86: POS PURCHASE - WALGREENS 102 N LEHI UT 8672 00582264608292483 | E86: Doctor | H86: R | I86: 126 | J86: Expense
A87: 2012-09-24 | C87: FAMOUS FOOTWEAR #1 AMERICAN FORK UT 4 | D87: CHECK CRD PURCHASE 09/22 FAMOUS FOOTWEAR #1 AMERICAN FORK UT 434258XXXXXX0954 082267077512022 ?MCC=5661 | E87: Clothing | H87: R | I87: 107.2 | J87: Expense
A88: 2012-09-24 | C88: COSTCO GAS | D88: POS PURCHASE - COSTCO GAS #073 LEHI UT 0954 00302267061773112 | E88: Gas & Fuel | H88: R | I88: 93.1 | J88: Expense
A89: 2012-09-25 | C89: SLATE CANYON STO | D89: BILL PAY SLATE CANYON STO ON-LINE No Account Number ON 09-25 | E89: Storage Unit | H89: R | I89: 90 | J89: Expense
A90: 2012-09-26 | C90: KID TO KID AMERICA LEHI UT 4 | D90: CHECK CRD PURCHASE 09/24 KID TO KID AMERICA LEHI UT 434258XXXXXX8672 282268710710328 ?MCC=5641 | E90: Baby Supplies | H90: R | I90: 98.1 | J90: Expense
A91: 2012-09-26 | C91: COSTCO GAS | D91: POS PURCHASE - COSTCO GAS #073 LEHI UT 8672 00462270672198385 | E91: Gas & Fuel | H91: R | I91: 39.2 | J91: Expense
A92: 2012-09-26 | C92: KID TO KID AMERICA LEHI UT 4 | D92: CHECK CRD PURCHASE 09/24 KID TO KID AMERICA LEHI UT 434258XXXXXX8672 282268710710328 ?MCC=5641 | E92: Gifts for Others | H92: R | J92: Expense
A93: 2012-09-26 | C93: SOMERS RICHARD | D93: TRANSFER FROM SOMERS RICHARD REF #PPEJXKKT48 PAM IPHONE SEPTEMBER 2012 | E93: Mobile Phone | G93: 46.5 | H93: R | J93: Expense
A94: 2012-09-26 | C94: SOMERS RICHARD | D94: TRANSFER FROM SOMERS RICHARD REF #PPETMQ2DXX PAM IPHONE SEPTEMBER 2012 | E94: Mobile Phone | G94: 30 | H94: R | J94: Expense
A95: 2012-09-26 | C95: SOMERS RICHARD | D95: TRANSFER FROM SOMERS RICHARD REF #PPE88F3FRQ RICHARD PHONE SEPTEMBER 2012 | E95: Mobile Phone | G95: 20 | H95: R | J95: Expense
A96: 2012-09-26 | C96: SOMERS RICHARD | D96: TRANSFER FROM SOMERS RICHARD REF #PPE2GB4C9Y RICHARD PHONE SEPTEMBER 2012 | E96: Mobile Phone | G96: 16.5 | H96: R | J96: Expense
A97: 2012-09-26 | C97: VERIZON WRLS MYACC 800-9220204 CA 4 | D97: CHECK CRD PURCHASE 09/24 VERIZON WRLS MYACC 800-9220204 CA 434258XXXXXX0954 002269105142871 ?MCC=4899 | E97: Mobile Phone | H97: R | I97: 136.1 | J97: Expense
A98: 2012-09-26 | C98: COSTCO WHSE | D98: POS PURCHASE - COSTCO WHSE #07 LEHI UT 8672 00462270668036215 | E98: Reimbursable | H98: R | I98: 64.3
A99: 2012-09-26 | C99: Wal Mart Super AMERICAN FORKUT | D99: POS PURCHASE - Wal Mart Super AMERICAN FORKUT 8672 00000227091530633 | E99: Reimbursable | H99: R | I99: 134
A100: 2012-09-27 | C100: COTTON BABIES INC. 888-332-2243 MO 4 | D100: CHECK CRD PURCHASE 09/25 COTTON BABIES INC. 888-332-2243 MO 434258XXXXXX8672 162269435883900 ?MCC=5641 | E100: Baby Supplies | H100: R | I100: 73.5 | J100: Expense
A101: 2012-09-27 | C101: AMERICAN FORK DI AMERICAN FORK UT 4 | D101: CHECK CRD PURCHASE 09/25 AMERICAN FORK DI AMERICAN FORK UT 434258XXXXXX8672 282269810998425 ?MCC=8398 | E101: Clothing | H101: R | I101: 75.1 | J101: Expense
A102: 2012-09-27 | D102: ONLINE TRANSFER REF #IBEXJS2PTS FROM SAVINGS VIA MOBILE | E102: Savings | G102: 1000 | H102: R
A103: 2012-10-01 | C103: BARNES & NOBLE #26 OREM UT 4 | D103: CHECK CRD PURCHASE 09/27 BARNES & NOBLE #26 OREM UT 434258XXXXXX8672 282271743818324 ?MCC=5942 | E103: Baby Supplies | H103: R | I103: 15 | J103: Expense
A104: 2012-10-01 | D104: CHECK CRD PUR RTRN 09/28 FAMOUS FOOTWEAR #1 AMERICAN FORK UT 434258XXXXXX0954 622274550039706 ?MCC=5661 | E104: Clothing | G104: 22.4 | H104: R | J104: Expense
A105: 2012-10-01 | C105: KOHL'S #0777 AMERICAN FORK UT 4 | D105: CHECK CRD PURCHASE 09/28 KOHL'S #0777 AMERICAN FORK UT 434258XXXXXX0954 282273080532557 ?MCC=5311 | E105: Clothing | H105: R | I105: 73.9 | J105: Expense
A106: 2012-10-01 | C106: UTOBSTR&GYN8013577 PROVO UT 4 | D106: CHECK CRD PURCHASE 09/27 UTOBSTR&GYN8013577 PROVO UT 434258XXXXXX8672 002271758697934 ?MCC=8011 | E106: Doctor | H106: R | I106: 55 | J106: Expense
A107: 2012-10-01 | C107: WALGREENS 102 N LEHI UT | D107: POS PURCHASE - WALGREENS 102 N LEHI UT 8672 00302275781397933 | E107: Doctor | H107: R | I107: 58.5 | J107: Expense
A108: 2012-10-01 | B108: 1900-07-04 | D108: CHECK # 186 (View) | E108: Fast Offering | H108: R | I108: 136.1 | J108: Expense
A109: 2012-10-01 | C109: Wal Mart Super AMERICAN FORKUT | D109: POS PURCHASE - Wal Mart Super AMERICAN FORKUT 0954 00000227379245721 | E109: Home Supplies | H109: R | I109: 32.3 | J109: Expense
A110: 2012-10-01 | D110: Somers Haley BILL PMT 092812 BILL PMT Somers Haley | E110: Mobile Phone | G110: 36.5 | H110: R | J110: Expense
A111: 2012-10-01 | D111: RECURRING TRANSFER REF #OPE2GC8N85 TO SAVINGS XXXXXX8564 | E111: Savings | H111: R | I111: 146.7
A112: 2012-10-01 | B112: 1900-07-04 | D112: CHECK # 186 (View) | E112: Tithing | H112: R | I112: 131 | J112: Expense
A113: 2012-10-02 | C113: KOHL'S | D113: POS PURCHASE - KOHL'S #0777 63 AMERICAN FORKUT 8672 00462276671980466 | E113: Clothing | H113: R | I113: 9.6 | J113: Expense
A114: 2012-10-03 | D114: Employeer | E114: Austin's Net Income | G114: 400 | H114: R | J114: Income
A115: 2012-10-03 | C115: TARGET T1814 AMERICAN FORKUT | D115: POS PURCHASE - TARGET T1814 AMERICAN FORKUT 0954 00000000000087946 | E115: Baby Supplies | H115: R | I115: 45.6 | J115: Expense
A116: 2012-10-03 | C116: COSTCO GAS | D116: POS PURCHASE - COSTCO GAS #073 LEHI UT 0954 00582277044703490 | E116: Gas & Fuel | H116: R | I116: 7.3 | J116: Expense
A117: 2012-10-09 | C117: U-SWIRL FROZEN YOG AMERICAN FORK UT 4 | D117: CHECK CRD PURCHASE 10/06 U-SWIRL FROZEN YOG AMERICAN FORK UT 434258XXXXXX8672 282281049185504 ?MCC=5814 | E117: Misc | H117: R | I117: 35 | J117: Expense
A118: 2012-10-09 | C118: SLC INTERNATIONAL SALT LAKE CIT UT 4 | D118: CHECK CRD PURCHASE 10/06 SLC INTERNATIONAL SALT LAKE CIT UT 434258XXXXXX0954 282280683644363 ?MCC=7523 | E118: Reimbursable | H118: R | I118: 128.3
A119: 2012-10-10 | C119: 7-ELEVEN PROVO UT | D119: POS PURCHASE - 7-ELEVEN PROVO UT 0954 00302284814739845 | E119: Gas & Fuel | H119: R | I119: 65.3 | J119: Expense
A120: 2012-10-11 | D120: DEPOSIT MADE IN A BRANCH/STORE #587852691 (View Details) | E120: Other Income | G120: 208 | H120: R | J120: Income
A121: 2012-10-11 | D121: DEPOSIT MADE IN A BRANCH/STORE #587852691 (View Details) | E121: Reimbursable | G121: 217.67 | H121: R
A122: 2012-10-12 | C122: CAPSIM MANAGEMENT 312-477-7200 IL 4 | D122: CHECK CRD PURCHASE 10/11 CAPSIM MANAGEMENT 312-477-7200 IL 434258XXXXXX0954 282285069613586 ?MCC=7399 | E122: Books & Supplies | H122: R | I122: 78.9 | J122: Expense
A123: 2012-10-15 | D123: INTEREST PAYMENT | E123: Interest Income | G123: 0.01 | H123: R | J123: Income
A124: 2012-10-15 | C124: MARKETPLACE CAFE PROVO UT 4 | D124: CHECK CRD PURCHASE 10/11 MARKETPLACE CAFE PROVO UT 434258XXXXXX0954 162285623560936 ?MCC=5814 | E124: Other Meals | H124: R | I124: 92.6 | J124: Expense
A125: 2012-10-15 | C125: CAFE ZUPAS AMERICA AMERICAN FORK UT 4 | D125: CHECK CRD PURCHASE 10/11 CAFE ZUPAS AMERICA AMERICAN FORK UT 434258XXXXXX8672 082285662431445 ?MCC=5814 | E125: Other Meals | H125: R | I125: 135.5 | J125: Expense
A126: 2012-10-15 | C126: UTAH VALLEY CAFETE PROVO UT 4 | D126: CHECK CRD PURCHASE 10/12 UTAH VALLEY CAFETE PROVO UT 434258XXXXXX0954 082286628881300 ?MCC=5812 | E126: Other Meals | H126: R | I126: 126.2 | J126: Expense
A127: 2012-10-15 | C127: UTAH VALLEY CAFETE PROVO UT 4 | D127: CHECK CRD PURCHASE 10/13 UTAH VALLEY CAFETE PROVO UT 434258XXXXXX0954 162288006587458 ?MCC=5812 | E127: Other Meals | H127: R | I127: 38.7 | J127: Expense
A128: 2012-10-18 | D128: Employeer | E128: Austin's Net Income | G128: 350 | H128: R | J128: Income
A129: 2012-10-18 | C129: Wal Mart Super AMERICAN FORKUT | D129: POS PURCHASE - Wal Mart Super AMERICAN FORKUT 0954 00000101858659179 | E129: Baby Supplies | H129: R | I129: 133.6 | J129: Expense
A130: 2012-10-18 | C130: BYU BOOKSTORE PROVO UT 4 | D130: CHECK CRD PURCHASE 10/16 BYU BOOKSTORE PROVO UT 434258XXXXXX0954 162290650083493 ?MCC=8220 | E130: Books & Supplies | H130: R | I130: 64.4 | J130: Expense
A131: 2012-10-18 | C131: BYU STUDENT HEA PROVO UT | D131: POS PURCHASE - BYU STUDENT HEA PROVO UT 8672 00462292665026138 | E131: Doctor | H131: R | I131: 10.7 | J131: Expense
A132: 2012-10-18 | D132: BYU Other Pmt Other 121016 XXXXX0137 Austin Somers | E132: Misc | H132: R | I132: 86.3 | J132: Expense
A133: 2012-10-19 | D133: BYU Other Pmt Other 121017 XXXXX9019 Austin Somers | E133: Misc | H133: R | I133: 147.1 | J133: Expense
A134: 2012-10-19 | D134: ONLINE TRANSFER REF #IBE5CKQ8M2 FROM SAVINGS VIA MOBILE | E134: Savings | G134: 1000 | H134: R
A135: 2012-10-22 | C135: TARGET T1814 AMERICAN FORKUT | D135: POS PURCHASE - TARGET T1814 AMERICAN FORKUT 8672 00000000000841852 | E135: Baby Supplies | H135: R | I135: 78.9 | J135: Expense
A136: 2012-10-22 | D136: BYU Health Pmt Health 121018 XXXXX6516 Austin Somers | E136: Doctor | H136: R | I136: 23.7 | J136: Expense
A137: 2012-10-22 | C137: COSTCO GAS | D137: POS PURCHASE - COSTCO GAS #073 LEHI UT 8672 00302294829840208 | E137: Gas & Fuel | H137: R | I137: 106.6 | J137: Expense
A138: 2012-10-22 | C138: COSTCO GAS | D138: POS PURCHASE - COSTCO GAS #073 LEHI UT 8672 00462296806392802 | E138: Gas & Fuel | H138: R | I138: 77.7 | J138: Expense
A139: 2012-10-22 | C139: WAL MART 2511 AMERICAN FOR UT | D139: POS PURCHASE - WAL MART 2511 AMERICAN FOR UT 8672 00000229625114435 | E139: Groceries | H139: R | I139: 129.6 | J139: Expense
A140: 2012-10-22 | C140: Amazon Digital Svc 866-216-1072 WA 4 | D140: CHECK CRD PURCHASE 10/20 Amazon Digital Svc 866-216-1072 WA 434258XXXXXX0954 282294643786569 ?MCC=5735 | E140: Misc | H140: R | I140: 137.2 | J140: Expense
A141: 2012-10-22 | C141: GREASE MONKEY AMERICAN FORKUT | D141: POS PURCHASE - GREASE MONKEY AMERICAN FORKUT 8672 00000294001357100 | E141: Service & Parts | H141: R | I141: 10.9 | J141: Expense
A142: 2012-10-23 | C142: WALGREENS #9681 LEHI UT 4 | D142: CHECK CRD PURCHASE 10/22 WALGREENS #9681 LEHI UT 434258XXXXXX8672 302296812296394 ?MCC=5912 | E142: Doctor | H142: R | I142: 144.7 | J142: Expense
A143: 2012-10-23 | D143: BYU Health Plan Insurance 121019 XXXXX2459 Austin Somers | E143: Health Insurance | H143: R | I143: 37.6 | J143: Expense
A144: 2012-10-24 | C144: BYU BOOKSTORE PROVO UT 4 | D144: CHECK CRD PURCHASE 10/22 BYU BOOKSTORE PROVO UT 434258XXXXXX0954 002296600821247 ?MCC=8220 | E144: Books & Supplies | H144: R | I144: 82.8 | J144: Expense
A145: 2012-10-25 | C145: COSTA VIDA OF PROV PROVO UT 4 | D145: CHECK CRD PURCHASE 10/23 COSTA VIDA OF PROV PROVO UT 434258XXXXXX0954 082297821572369 ?MCC=5814 | E145: Other Meals | H145: R | I145: 21.9 | J145: Expense
A146: 2012-10-26 | C146: VERIZON WRLS MYACC 800-9220204 CA 4 | D146: CHECK CRD PURCHASE 10/24 VERIZON WRLS MYACC 800-9220204 CA 434258XXXXXX0954 002298555303161 ?MCC=4899 | E146: Mobile Phone | H146: R | I146: 78.9 | J146: Expense
A147: 2012-10-29 | C147: SLAB PIZZA LLC PROVO UT 4 | D147: CHECK CRD PURCHASE 10/26 SLAB PIZZA LLC PROVO UT 434258XXXXXX0954 282300850743134 ?MCC=5814 | E147: Dates | H147: R | I147: 8.6 | J147: Expense
A148: 2012-10-29 | C148: THECHOCOLAT8012247 OREM UT 4 | D148: CHECK CRD PURCHASE 10/26 THECHOCOLAT8012247 OREM UT 434258XXXXXX0954 162300839213540 ?MCC=5812 | E148: Dates | H148: R | I148: 28.2 | J148: Expense
A149: 2012-10-29 | C149: Wal Mart Super AMERICAN FORKUT | D149: POS PURCHASE - Wal Mart Super AMERICAN FORKUT 8672 00000102793077582 | E149: Groceries | H149: R | I149: 116.7 | J149: Expense
A150: 2012-10-29 | C150: SMITHS FOOD #4136 PROVO UT 4 | D150: CHECK CRD PURCHASE 10/26 SMITHS FOOD #4136 PROVO UT 434258XXXXXX0954 162300858490430 ?MCC=5411 | E150: Misc | H150: R | I150: 133.3 | J150: Expense
A151: 2012-10-29 | D151: Somers Haley BILL PMT 102612 BILL PMT Somers Haley | E151: Mobile Phone | G151: 36.6 | H151: R | J151: Expense
A152: 2012-10-31 | D152: RECURRING TRANSFER REF #OPE5CMWHR6 TO SAVINGS XXXXXX8564 | E152: Savings | H152: R | I152: 99.3
A153: 2012-11-01 | C153: Slate Canyon Sto | D153: BILL PAY Slate Canyon Sto ON-LINE xxxt 0018 ON 10-26 | E153: Storage Unit | H153: R | I153: 113 | J153: Expense
A154: 2012-11-02 | D154: Employeer | E154: Austin's Net Income | G154: 560 | H154: R | J154: Income
A155: 2012-11-02 | C155: MOUNTAIN WEST BURR PROVO UT 4 | D155: CHECK CRD PURCHASE 11/04 MOUNTAIN WEST BURR PROVO UT 434258XXXXXX0954 162308844631891 ?MCC=5812 | E155: Dates | H155: R | I155: 103.6 | J155: Expense
A156: 2012-11-02 | C156: CHEVRON 00204058 PROVO UT 4 | D156: CHECK CRD PURCHASE 11/01 CHEVRON 00204058 PROVO UT 434258XXXXXX0954 382306720543798 ?MCC=5542 | E156: Gas & Fuel | H156: R | I156: 63.1 | J156: Expense
A157: 2012-11-02 | C157: Wal Mart Super AMERICAN FORKUT | D157: POS PURCHASE - Wal Mart Super AMERICAN FORKUT 8672 00000110238402327 | E157: Groceries | H157: R | I157: 41.5 | J157: Expense
A158: 2012-11-05 | D158: BYU Health Pmt Health 121101 XXXXX1879 Austin Somers | E158: Doctor | H158: R | I158: 10.6 | J158: Expense
A159: 2012-11-05 | B159: 1900-07-05 | D159: CHECK # 187 (View) | E159: Fast Offering | H159: R | I159: 131.4 | J159: Expense
A160: 2012-11-05 | C160: Wal Mart Super AMERICAN FORKUT | D160: POS PURCHASE - Wal Mart Super AMERICAN FORKUT 0954 00000110550023756 | E160: Groceries | H160: R | I160: 146.1 | J160: Expense
A161: 2012-11-05 | B161: 1900-07-05 | D161: CHECK # 187 (View) | E161: Tithing | H161: R | I161: 46.8 | J161: Expense
A162: 2012-11-07 | C162: WALGREENS 102 N LEHI UT | D162: POS PURCHASE - WALGREENS 102 N LEHI UT 8672 00582313048033487 | E162: Doctor | H162: R | I162: 75.4 | J162: Expense
A163: 2012-11-13 | C163: NORDSTROM 071 1 SANDY UT | D163: POS PURCHASE - NORDSTROM 071 1 SANDY UT 0954 00302315622171373 | E163: Baby Supplies | F163: Diaper bag | H163: R | I163: 44.3 | J163: Expense
A164: 2012-11-13 | C164: 7-ELEVEN PROVO UT | D164: POS PURCHASE - 7-ELEVEN PROVO UT 0954 00462317807446200 | E164: Gas & Fuel | H164: R | I164: 90.7 | J164: Expense
A165: 2012-11-13 | C165: COSTCO WHSE | D165: POS PURCHASE - COSTCO WHSE #07 LEHI UT 8672 00382318074545371 | E165: Groceries | H165: R | I165: 123.6 | J165: Expense
A166: 2012-11-13 | C166: COSTCO WHSE | D166: POS PURCHASE - COSTCO WHSE #07 LEHI UT 8672 00382318074545371 | E166: Misc | F166: Stamps | H166: R | I166: 80.1 | J166: Expense
A167: 2012-11-13 | D167: ONLINE TRANSFER REF #IBEC5V2YN3 FROM SAVINGS VIA MOBILE | E167: Savings | G167: 500 | H167: R
A168: 2012-11-13 | D168: ONLINE TRANSFER REF #IBEC5V7L8T FROM SAVINGS EVERLIES HOSPITAL BILL TRANSFER | E168: Savings | G168: 400 | H168: R
A169: 2012-11-14 | C169: IHC CENTRAL AR SVC 801-5762760 UT 4 | D169: CHECK CRD PURCHASE 11/13 IHC CENTRAL AR SVC 801-5762760 UT 434258XXXXXX8672 002318809947778 ?MCC=8062 | E169: Doctor | F169: Everlie's hospital bill | H169: R | I169: 44 | J169: Expense
A170: 2012-11-15 | D170: INTEREST PAYMENT | E170: Interest Income | G170: 0.01 | H170: R | J170: Income
A171: 2012-11-19 | D171: Employeer | E171: Austin's Net Income | G171: 700 | H171: C | J171: Income
A172: 2012-11-19 | C172: UWMC ONLINE BILL P 206-5981950 WA 4 | D172: CHECK CRD PURCHASE 11/16 UWMC ONLINE BILL P 206-5981950 WA 434258XXXXXX8672 282317761636126 ?MCC=8099 | E172: Doctor | F172: Bill from doctor in WA | H172: C | I172: 112.4 | J172: Expense
A173: 2012-11-19 | C173: WAL MART 2511 AMERICAN FOR UT | D173: POS PURCHASE - WAL MART 2511 AMERICAN FOR UT 8672 00000000253209057 | E173: Misc | F173: Just a bunch of stuff | H173: C | I173: 95.9 | J173: Expense
A174: 2012-11-20 | C174: WAL MART 2511 AMERICAN FOR UT | D174: POS PURCHASE - WAL MART 2511 AMERICAN FOR UT 0954 00000000551115353 | E174: Groceries | H174: C | I174: 100.1 | J174: Expense
A175: 2012-11-20 | C175: THE HOME DEPOT AMERICAN FORKUT | D175: POS PURCHASE - THE HOME DEPOT AMERICAN FORKUT 0954 00382325773443668 | E175: Misc | F175: Plug for Jay's stove | H175: C | I175: 34 | J175: Expense
A176: 2012-11-21 | C176: JOANN STORES, I AMERICAN FORKUT | D176: POS PURCHASE - JOANN STORES, I AMERICAN FORKUT 8672 00302326613306337 | E176: Reimbursable | F176: Stuff for nursing shawl | H176: C | I176: 37.7
A177: 2012-11-21 | C177: AMERICAN FORK D AMERICAN FORKUT | D177: POS PURCHASE - AMERICAN FORK D AMERICAN FORKUT 8672 00000000353643706 | E177: Reimbursable | F177: Bought stuff for Becca | H177: C | I177: 15.7
A178: 2012-11-26 | B178: 1900-07-06 | D178: CHECK # 188 (View) | E178: Fast Offering | H178: C | I178: 60.7 | J178: Expense
A179: 2012-11-26 | C179: COSTCO GAS | D179: POS PURCHASE - COSTCO GAS #073 LEHI UT 0954 00462329836741646 | E179: Gas & Fuel | I179: 123.9 | J179: Expense
A180: 2012-11-26 | C180: SOMERS RICHARD | D180: TRANSFER FROM SOMERS RICHARD REF #PPETN79FMV PAM IPHONE NOVEMBER 2012 | E180: Mobile Phone | G180: 76.6 | H180: C | J180: Expense
A181: 2012-11-26 | C181: SOMERS RICHARD | D181: TRANSFER FROM SOMERS RICHARD REF #PPEXK8TKCB RICHARD PHONE NOVEMBER 2012 | E181: Mobile Phone | G181: 36.6 | H181: C | J181: Expense
A182: 2012-11-26 | C182: VERIZON WRLS MYACC 800-9220204 CA 4 | D182: CHECK CRD PURCHASE 11/23 VERIZON WRLS MYACC 800-9220204 CA 434258XXXXXX0954 002328732798926 ?MCC=4899 | E182: Mobile Phone | H182: C | I182: 200 | J182: Expense
A183: 2012-11-26 | D183: ONLINE TRANSFER REF #IBEXK8R6LH FROM SAVINGS VIA MOBILE | E183: Savings | G183: 500 | H183: C
A184: 2012-11-26 | C184: COSTCO WHSE | D184: POS PURCHASE - COSTCO WHSE #07 LEHI UT 8672 00382329677492119 | E184: Service & Parts | F184: New tires for the Corolla | H184: C | I184: 52.8 | J184: Expense
A185: 2012-11-26 | B185: 188 | D185: CHECK # 188 (View) | E185: Tithing | H185: C | I185: 94.4 | J185: Expense
A186: 2012-11-27 | C186: COTTON BABIES INC. 888-332-2243 MO 4 | D186: CHECK CRD PURCHASE 11/25 COTTON BABIES INC. 888-332-2243 MO 434258XXXXXX0954 082331021355002 ?MCC=5641 | E186: Baby Supplies | F186: Diapers | H186: C | I186: 46.6 | J186: Expense
A187: 2012-11-27 | D187: DEPOSIT MADE IN A BRANCH/STORE #389680244 (View Details) | E187: Other Income | F187: Check from Jane and extra cash | G187: 45 | H187: C | J187: Income
A188: 2012-11-27 | C188: SLATE CANYON STO | D188: BILL PAY SLATE CANYON STO ON-LINE xxxt 0018 ON 11-27 | E188: Storage Unit | H188: C | I188: 19.6 | J188: Expense
A189: 2012-11-28 | C189: WAL MART 2511 AMERICAN FOR UT | D189: POS PURCHASE - WAL MART 2511 AMERICAN FOR UT 8672 00000000244748888 | E189: Baby Supplies | H189: C | I189: 92.4 | J189: Expense
A190: 2012-11-28 | C190: BYU STUDENT HEALTH PROVO UT 4 | D190: CHECK CRD PURCHASE 11/26 BYU STUDENT HEALTH PROVO UT 434258XXXXXX8672 082331844566871 ?MCC=5912 | E190: Doctor | F190: Perscriptions | H190: C | I190: 30.7 | J190: Expense
A191: 2012-11-28 | C191: WAL MART 2511 AMERICAN FOR UT | D191: POS PURCHASE - WAL MART 2511 AMERICAN FOR UT 8672 00000000244748888 | E191: Gifts for Others | F191: Gifts for Jen Cox | H191: C | I191: 103.5 | J191: Expense
A192: 2012-11-28 | D192: Somers Haley BILL PMT 112712 BILL PMT Somers Haley | E192: Mobile Phone | G192: 36.6 | H192: C | J192: Expense
A193: 2012-11-28 | C193: WAL MART 2511 AMERICAN FOR UT | D193: POS PURCHASE - WAL MART 2511 AMERICAN FOR UT 8672 00000000244748888 | E193: Groceries | H193: C | I193: 118.3 | J193: Expense
A194: 2012-11-28 | C194: COSTCO WHSE 0733 LEHI UT | D194: POS PURCHASE - COSTCO WHSE 0733 LEHI UT 8672 00302333719441364 | E194: Groceries | H194: C | I194: 30.7 | J194: Expense
A195: 2012-11-30 | D195: RECURRING TRANSFER REF #OPEC5Z36WM TO SAVINGS XXXXXX8564 | E195: Savings | H195: C | I195: 84.9
A196: 2012-08-14 | D196: INTEREST PAYMENT | E196: Interest Income | G196: 1 | H196: R | J196: Income
A197: 2012-08-17 | D197: ONLINE TRANSFER REF #IBE2FZDXTV TO COMPLETE ADVANTAGE(RM) VIA MOBILE | E197: Checking | H197: R | I197: 2500
A198: 2012-08-31 | D198: RECURRING TRANSFER REF #OPEQQGLZRM FROM COMPLETE ADVANTAGE(RM) XXXXXX9464 | E198: Checking | G198: 100 | H198: R
A199: 2012-09-17 | D199: ONLINE TRANSFER REF #IBE88CH5BV TO VISA BECCAS DRESS AND HOSPITAL DEPOSIT | E199: Checking | H199: R | I199: 559.21
A200: 2012-09-17 | D200: INTEREST PAYMENT | E200: Interest Income | G200: 2 | H200: R | J200: Income
... 10 more rows

Sheet Lists (hidden)
A1: Category | B1: Sub Category | C1: Type | D1: Budget | F1: Category
B2: Austin's Money | F2: Auto & Transportation
B3: Austin's Net Income | C3: Income | F3: Bills & Utilities
A4: Auto & Transportation | B4: Auto Insurance | C4: Expense | F4: Education
A5: Home | B5: Baby Purchases | C5: Expense | F5: Entertainment
A6: Home | B6: Baby Supplies | C6: Expense | D6: x | F6: Fees
A7: Fees | B7: Bankng Fees | C7: Expense | F7: Food & Dining
A8: Education | B8: Books & Supplies | C8: Expense | D8: x | F8: Gifts & Donations
B9: Checking | F9: Health & Fitness
A10: Home | B10: Clothing | C10: Expense
A11: Bills & Utilities | B11: Credit Card Payment | C11: Expense
A12: Entertainment | B12: Dates | C12: Expense | D12: x
A13: Health & Fitness | B13: Dentist | C13: Expense
A14: Health & Fitness | B14: Doctor | C14: Expense | D14: x
A15: Bills & Utilities | B15: Electric Bill | C15: Expense
A16: Health & Fitness | B16: Eyecare | C16: Expense
A17: Gifts & Donations | B17: Fast Offering | C17: Expense | D17: x
A18: Auto & Transportation | B18: Gas & Fuel | C18: Expense | D18: x
A19: Gifts & Donations | B19: Gifts for Others | C19: Expense | D19: x
A20: Food & Dining | B20: Groceries | C20: Expense | D20: x
A21: Health & Fitness | B21: Health Insurance | C21: Expense
A22: Home | B22: Home Supplies | C22: Expense
B23: Interest Income | C23: Income
A24: Bills & Utilities | B24: Internet | C24: Expense
A25: Home | B25: Laundry | C25: Expense
B26: Misc | C26: Expense | D26: x
A27: Bills & Utilities | B27: Mobile Phone | C27: Expense | D27: x
A28: Home | B28: Mortgage & Rent | C28: Expense
B29: Not in Budget | C29: Expense
B30: Other Income | C30: Income
A31: Food & Dining | B31: Other Meals | C31: Expense | D31: x
A32: Auto & Transportation | B32: Parking | C32: Expense
A33: Auto & Transportation | B33: Public Transportation | C33: Expense
A34: Auto & Transportation | B34: Registration | C34: Expense
B35: Reimbursable
B36: Rochelle's Money
B37: Rochelle's Net Income | C37: Income
B38: Savings
A39: Entertainment | B39: Seattle Fun Fund | C39: Expense
A40: Auto & Transportation | B40: Service & Parts | C40: Expense
A41: Bills & Utilities | B41: Storage Unit | C41: Expense | D41: x
A42: Gifts & Donations | B42: Tithing | C42: Expense
A43: Health & Fitness | B43: Toiletries | C43: Expense
A44: Auto & Transportation | B44: Tolls | C44: Expense
A45: Education | B45: Tuition | C45: Expense

Sheet Sheet1 (hidden)
A1: Start | B1: End
A2: BILL PAY | B2: ON-LINE | C2: BILL PAY Slate Canyon Sto ON-LINE No Account Number ON 08-28
C3: BILL PAY SLATE CANYON STO ON-LINE No Account Number ON 09-25
C4: BILL PAY Slate Canyon Sto ON-LINE xxxt 0018 ON 10-26
C5: BYU Health Plan Insurance 120904 XXXXX0027 Austin Somers
C6: BYU Health Plan Insurance 121019 XXXXX2459 Austin Somers
C7: BYU Health Pmt Health 121018 XXXXX6516 Austin Somers
C8: BYU Health Pmt Health 121101 XXXXX1879 Austin Somers
C9: BYU Other Pmt Other 120904 XXXXX0001 Austin Somers
C10: BYU Other Pmt Other 121016 XXXXX0137 Austin Somers
C11: BYU Other Pmt Other 121017 XXXXX9019 Austin Somers
C12: BYU Tuition Pmt Tuition 120820 XXXXX8613 Austin Somers
A13: CHECK # | B13: (View) | C13: CHECK # 181 (View)
C14: CHECK # 184 * (View)
C15: CHECK # 185 (View)
C16: CHECK # 186 (View)
C17: CHECK # 187 (View)
A18: CHECK CRD PURCHASE xx/xx | B18: 434258XXXXXX0954 | C18: CHECK CRD PUR RTRN 09/12 JCPENNEY 2770 PROVO UT 434258XXXXXX0954 612257553414691 ?MCC=5311
C19: CHECK CRD PUR RTRN 09/28 FAMOUS FOOTWEAR #1 AMERICAN FORK UT 434258XXXXXX0954 622274550039706 ?MCC=5661
C20: CHECK CRD PURCHASE 08/11 AMERICAN APPAREL-0 SEATTLE WA 434258XXXXXX0954 282224722041255 ?MCC=5699
C21: CHECK CRD PURCHASE 08/11 FRED-MEYER #0608 SEATTLE WA 434258XXXXXX0954 082224790526316 ?MCC=5411
C22: CHECK CRD PURCHASE 08/11 ORCA KCM AUTOLOAD 206-6247277 WA 434258XXXXXX0954 282223256759004 ?MCC=9399
C23: CHECK CRD PURCHASE 08/11 SEATTLE 684-PARK SEATTLE WA 434258XXXXXX0954 002224705532286 ?MCC=9399
C24: CHECK CRD PURCHASE 08/12 GROUPON INC 877-788-7858 IL 434258XXXXXX8672 082224658005480 ?MCC=7299
C25: CHECK CRD PURCHASE 08/13 CHEVRON 00073792 BURLEY ID 434258XXXXXX0954 582227036392046 ?MCC=5542
C26: CHECK CRD PURCHASE 08/13 MAVERIK #439 BAKR CITY OR 434258XXXXXX0954 082226705567546 ?MCC=5542
C27: CHECK CRD PURCHASE 08/13 PERKINS FAMILY RES 208-6783501 ID 434258XXXXXX0954 002227031145354 ?MCC=5812
C28: CHECK CRD PURCHASE 08/15 AMAZON MKTPLACE PM AMZN.COM/BILL WA 434258XXXXXX0954 082227839459965 ?MCC=5942
C29: CHECK CRD PURCHASE 08/15 UTAH-DMV RENEWAL E 801-297-3809 UT 434258XXXXXX8672 282227695633625 ?MCC=9399
C30: CHECK CRD PURCHASE 08/15 WALGREENS #9681 LEHI UT 434258XXXXXX8672 582228638849586 ?MCC=5912
C31: CHECK CRD PURCHASE 08/16 ARBYS 1916 0001 AMERICAN FORK UT 434258XXXXXX0954 082230100884463 ?MCC=5814
C32: CHECK CRD PURCHASE 08/17 DENNIS SALT LAKE C SALT LAKE CIT UT 434258XXXXXX8672 162230826539556 ?MCC=5699
C33: CHECK CRD PURCHASE 08/17 FAST GAS #6 AMERICAN FORK UT 434258XXXXXX0954 082230489762757 ?MCC=5542
C34: CHECK CRD PURCHASE 08/22 VERIZON WRLS MYACC 800-9220204 CA 434258XXXXXX0954 162235815228227 ?MCC=4899
C35: CHECK CRD PURCHASE 08/27 BYU BOOKSTORE PROVO UT 434258XXXXXX0954 162240615431323 ?MCC=8220
C36: CHECK CRD PURCHASE 08/27 MARKETPLACE CAFE PROVO UT 434258XXXXXX0954 082240629268614 ?MCC=5814
C37: CHECK CRD PURCHASE 08/28 THANKSGIVING POINT LEHI UT 434258XXXXXX8672 162241670729610 ?MCC=5812
C38: CHECK CRD PURCHASE 08/28 THANKSGIVING POINT LEHI UT 434258XXXXXX8672 282241602916114 ?MCC=8398
C39: CHECK CRD PURCHASE 08/30 ALPINE LOCK & SAFE AMERICAN FORK UT 434258XXXXXX8672 002243641972285 ?MCC=7399
C40: CHECK CRD PURCHASE 09/01 CINEMARK THEATRES PROVO UT 434258XXXXXX0954 002245839586042 ?MCC=7832
C41: CHECK CRD PURCHASE 09/01 SLAB PIZZA LLC PROVO UT 434258XXXXXX0954 282245850790640 ?MCC=5814
C42: CHECK CRD PURCHASE 09/04 ARBYS 1916 0001 AMERICAN FORK UT 434258XXXXXX8672 162248745165823 ?MCC=5814
C43: CHECK CRD PURCHASE 09/05 BYU BOOKSTORE PROVO UT 434258XXXXXX0954 162250029573136 ?MCC=8220
C44: CHECK CRD PURCHASE 09/07 APL*APPLE ITUNES S 866-712-7753 CA 434258XXXXXX0954 082249203757115 ?MCC=5735
C45: CHECK CRD PURCHASE 09/07 IKEA DRAPER DRAPER UT 434258XXXXXX0954 002252083281668 ?MCC=5814
C46: CHECK CRD PURCHASE 09/07 JCPENNEY 0231 SANDY UT 434258XXXXXX0954 002252071459184 ?MCC=5311
C47: CHECK CRD PURCHASE 09/10 BYU BOOKSTORE PROVO UT 434258XXXXXX0954 162254827327638 ?MCC=8220
C48: CHECK CRD PURCHASE 09/12 FAST GAS #6 AMERICAN FORK UT 434258XXXXXX0954 002256483177053 ?MCC=5542
C49: CHECK CRD PURCHASE 09/13 UTOBSTR&GYN8013577 PROVO UT 434258XXXXXX8672 002257771823200 ?MCC=8011
C50: CHECK CRD PURCHASE 09/15 THE HOME DEPOT 441 AMERICAN FORK UT 434258XXXXXX0954 162259813624444 ?MCC=5200
C51: CHECK CRD PURCHASE 09/22 FAMOUS FOOTWEAR #1 AMERICAN FORK UT 434258XXXXXX0954 082267077512022 ?MCC=5661
C52: CHECK CRD PURCHASE 09/24 KID TO KID AMERICA LEHI UT 434258XXXXXX8672 282268710710328 ?MCC=5641
C53: CHECK CRD PURCHASE 09/24 VERIZON WRLS MYACC 800-9220204 CA 434258XXXXXX0954 002269105142871 ?MCC=4899
C54: CHECK CRD PURCHASE 09/25 AMERICAN FORK DI AMERICAN FORK UT 434258XXXXXX8672 282269810998425 ?MCC=8398
C55: CHECK CRD PURCHASE 09/25 COTTON BABIES INC. 888-332-2243 MO 434258XXXXXX8672 162269435883900 ?MCC=5641
C56: CHECK CRD PURCHASE 09/27 BARNES & NOBLE #26 OREM UT 434258XXXXXX8672 282271743818324 ?MCC=5942
C57: CHECK CRD PURCHASE 09/27 UTOBSTR&GYN8013577 PROVO UT 434258XXXXXX8672 002271758697934 ?MCC=8011
C58: CHECK CRD PURCHASE 09/28 KOHL'S #0777 AMERICAN FORK UT 434258XXXXXX0954 282273080532557 ?MCC=5311
C59: CHECK CRD PURCHASE 10/06 SLC INTERNATIONAL SALT LAKE CIT UT 434258XXXXXX0954 282280683644363 ?MCC=7523
C60: CHECK CRD PURCHASE 10/06 U-SWIRL FROZEN YOG AMERICAN FORK UT 434258XXXXXX8672 282281049185504 ?MCC=5814
C61: CHECK CRD PURCHASE 10/11 CAFE ZUPAS AMERICA AMERICAN FORK UT 434258XXXXXX8672 082285662431445 ?MCC=5814
C62: CHECK CRD PURCHASE 10/11 CAPSIM MANAGEMENT 312-477-7200 IL 434258XXXXXX0954 282285069613586 ?MCC=7399
C63: CHECK CRD PURCHASE 10/11 MARKETPLACE CAFE PROVO UT 434258XXXXXX0954 162285623560936 ?MCC=5814
C64: CHECK CRD PURCHASE 10/12 UTAH VALLEY CAFETE PROVO UT 434258XXXXXX0954 082286628881300 ?MCC=5812
C65: CHECK CRD PURCHASE 10/13 UTAH VALLEY CAFETE PROVO UT 434258XXXXXX0954 162288006587458 ?MCC=5812
C66: CHECK CRD PURCHASE 10/16 BYU BOOKSTORE PROVO UT 434258XXXXXX0954 162290650083493 ?MCC=8220
C67: CHECK CRD PURCHASE 10/20 Amazon Digital Svc 866-216-1072 WA 434258XXXXXX0954 282294643786569 ?MCC=5735
C68: CHECK CRD PURCHASE 10/22 BYU BOOKSTORE PROVO UT 434258XXXXXX0954 002296600821247 ?MCC=8220
C69: CHECK CRD PURCHASE 10/22 WALGREENS #9681 LEHI UT 434258XXXXXX8672 302296812296394 ?MCC=5912
C70: CHECK CRD PURCHASE 10/23 COSTA VIDA OF PROV PROVO UT 434258XXXXXX0954 082297821572369 ?MCC=5814
C71: CHECK CRD PURCHASE 10/24 VERIZON WRLS MYACC 800-9220204 CA 434258XXXXXX0954 002298555303161 ?MCC=4899
C72: CHECK CRD PURCHASE 10/26 SLAB PIZZA LLC PROVO UT 434258XXXXXX0954 282300850743134 ?MCC=5814
C73: CHECK CRD PURCHASE 10/26 SMITHS FOOD #4136 PROVO UT 434258XXXXXX0954 162300858490430 ?MCC=5411
C74: CHECK CRD PURCHASE 10/26 THECHOCOLAT8012247 OREM UT 434258XXXXXX0954 162300839213540 ?MCC=5812
C75: CHECK CRD PURCHASE 11/01 CHEVRON 00204058 PROVO UT 434258XXXXXX0954 382306720543798 ?MCC=5542
C76: CHECK CRD PURCHASE 11/04 MOUNTAIN WEST BURR PROVO UT 434258XXXXXX0954 162308844631891 ?MCC=5812
C77: DEPOSIT MADE IN A BRANCH/STORE #536288441 (View Details)
C78: DEPOSIT MADE IN A BRANCH/STORE #540944788 (View Details)
C79: DEPOSIT MADE IN A BRANCH/STORE #567731018 (View Details)
C80: DEPOSIT MADE IN A BRANCH/STORE #587852691 (View Details)
C81: E&Y EMPS BATCH 081412 22 Austin C. Somers
C82: ERNST & YOUNG U. DIR DEP 120831 3251884 SOMERS,AUSTIN C.
C83: HCS 041038985 QUALTRICS XXXXX1352 SOMERS, AUSTIN C
C84: HCS 041038985 QUALTRICS XXXXX1352 SOMERS, AUSTIN C
C85: HCS 041038985 QUALTRICS XXXXX1352 SOMERS, AUSTIN C
C86: HCS 041038985 QUALTRICS XXXXX1352 SOMERS, AUSTIN C
C87: HCS 041038985 QUALTRICS XXXXX1352 SOMERS, AUSTIN C
C88: HCS 041038985 QUALTRICS XXXXX1352 SOMERS, AUSTIN C
A89: INTEREST PAYMENT | C89: INTEREST PAYMENT
C90: INTEREST PAYMENT
C91: INTEREST PAYMENT
C92: ONLINE TRANSFER REF #IBE2FZDXTV FROM SAVINGS VIA MOBILE
C93: ONLINE TRANSFER REF #IBE5CKQ8M2 FROM SAVINGS VIA MOBILE
C94: ONLINE TRANSFER REF #IBEXJS2PTS FROM SAVINGS VIA MOBILE
A95: POS PURCHASE - | B95: # or 00 | C95: POS PURCHASE - 7-ELEVEN PROVO UT 0954 00302284814739845
C96: POS PURCHASE - BYU STUDENT HEA PROVO UT 8672 00462292665026138
C97: POS PURCHASE - COSTCO GAS #073 LEHI UT 0954 00302245043899208
C98: POS PURCHASE - COSTCO GAS #073 LEHI UT 0954 00302267061773112
C99: POS PURCHASE - COSTCO GAS #073 LEHI UT 0954 00582277044703490
C100: POS PURCHASE - COSTCO GAS #073 LEHI UT 8672 00302227732463530
C101: POS PURCHASE - COSTCO GAS #073 LEHI UT 8672 00302294829840208
C102: POS PURCHASE - COSTCO GAS #073 LEHI UT 8672 00462270672198385
C103: POS PURCHASE - COSTCO GAS #073 LEHI UT 8672 00462296806392802
C104: POS PURCHASE - COSTCO GAS #073 LEHI UT 8672 00582250837575400
C105: POS PURCHASE - COSTCO WHSE #07 LEHI UT 0954 00302238811356649
C106: POS PURCHASE - COSTCO WHSE #07 LEHI UT 8672 00302248860791025
C107: POS PURCHASE - COSTCO WHSE #07 LEHI UT 8672 00462270668036215
C108: POS PURCHASE - COSTCO WHSE #07 LEHI UT 8672 00582230713970472
C109: POS PURCHASE - GREASE MONKEY AMERICAN FORKUT 8672 00000227001753402
C110: POS PURCHASE - GREASE MONKEY AMERICAN FORKUT 8672 00000294001357100
C111: POS PURCHASE - KOHL'S #0777 63 AMERICAN FORKUT 8672 00302238746018724
C112: POS PURCHASE - KOHL'S #0777 63 AMERICAN FORKUT 8672 00462276671980466
C113: POS PURCHASE - TARGET T1814 AMERICAN FORKUT 0954 00000000000087946
C114: POS PURCHASE - TARGET T1814 AMERICAN FORKUT 0954 00000000000232225
C115: POS PURCHASE - TARGET T1814 AMERICAN FORKUT 8672 00000000000337700
C116: POS PURCHASE - TARGET T1814 AMERICAN FORKUT 8672 00000000000841852
C117: POS PURCHASE - THE HOME DEPOT AMERICAN FORKUT 0954 00302247630630109
C118: POS PURCHASE - THE HOME DEPOT AMERICAN FORKUT 8672 00000090139983001
C119: POS PURCHASE - THE MENS WEARHO OREM UT 0954 00382262852058715
C120: POS PURCHASE - USA GASOLINE 62 KENNEWICK WA 0954 00302226609599213
C121: POS PURCHASE - WAL MART 2511 AMERICAN FOR UT 8672 00000229625114435
C122: POS PURCHASE - Wal Mart Super AMERICAN FORKUT 0954 00000101858659179
C123: POS PURCHASE - Wal Mart Super AMERICAN FORKUT 0954 00000110550023756
C124: POS PURCHASE - Wal Mart Super AMERICAN FORKUT 0954 00000223860741371
C125: POS PURCHASE - Wal Mart Super AMERICAN FORKUT 0954 00000225284413248
C126: POS PURCHASE - Wal Mart Super AMERICAN FORKUT 0954 00000227379245721
C127: POS PURCHASE - Wal Mart Super AMERICAN FORKUT 8672 00000102793077582
C128: POS PURCHASE - Wal Mart Super AMERICAN FORKUT 8672 00000110238402327
C129: POS PURCHASE - Wal Mart Super AMERICAN FORKUT 8672 00000222774510735
C130: POS PURCHASE - Wal Mart Super AMERICAN FORKUT 8672 00000223093285392
C131: POS PURCHASE - Wal Mart Super AMERICAN FORKUT 8672 00000225702596708
C132: POS PURCHASE - Wal Mart Super AMERICAN FORKUT 8672 00000226319742607
C133: POS PURCHASE - Wal Mart Super AMERICAN FORKUT 8672 00000227091530633
C134: POS PURCHASE - Wal Mart Super SALT LAKE CITUT 8672 00000223027501630
C135: POS PURCHASE - Wal Mart Super SALT LAKE CITUT 8672 00000223029795320
C136: POS PURCHASE - WALGREENS 102 N LEHI UT 8672 00302275781397933
C137: POS PURCHASE - WALGREENS 102 N LEHI UT 8672 00582264608292483
C138: POS PURCHASE - WALGREENS 102 N LEHI UT 8672 00582313048033487
C139: POS PURCHASE RETURN - THE HOME DEPOT THE HOME DAMERICAN FORKUT 0954 00582259798857590
C140: RECURRING TRANSFER REF #OPE2GC8N85 TO SAVINGS XXXXXX8564
C141: RECURRING TRANSFER REF #OPE5CMWHR6 TO SAVINGS XXXXXX8564
C142: RECURRING TRANSFER REF #OPEQQGLZRM TO SAVINGS XXXXXX8564
C143: Somers Haley BILL PMT 082412 BILL PMT Somers Haley
C144: Somers Haley BILL PMT 092812 BILL PMT Somers Haley
C145: Somers Haley BILL PMT 102612 BILL PMT Somers Haley
A146: TRANSFER FROM | B146: REF | C146: TRANSFER FROM SOMERS RICHARD REF #PPE2GB4C9Y RICHARD PHONE SEPTEMBER 2012
C147: TRANSFER FROM SOMERS RICHARD REF #PPE885N8DY PAM IPHONE AUGUST 2012
C148: TRANSFER FROM SOMERS RICHARD REF #PPE88F3FRQ RICHARD PHONE SEPTEMBER 2012
C149: TRANSFER FROM SOMERS RICHARD REF #PPEG28MCNK RICHARD PHONE AUGUST 2012
C150: TRANSFER FROM SOMERS RICHARD REF #PPEJX7FSWF RICHARD PHONE JULY 2012
C151: TRANSFER FROM SOMERS RICHARD REF #PPEJXKKT48 PAM IPHONE SEPTEMBER 2012
C152: TRANSFER FROM SOMERS RICHARD REF #PPETMCW9BS PAM IPHONE JULY 2012
C153: TRANSFER FROM SOMERS RICHARD REF #PPETMQ2DXX PAM IPHONE SEPTEMBER 2012
